Workbook

Sheet 開始
B1: 關於此範本
B2: 使用這份 [商業費用預算] 活頁簿來追蹤計劃與實際費用以及差異。
B3: 填入公司名稱並新增標誌。
B4: 在 [計劃費用] 工作表和 [實際費用] 工作表中輸入詳細資料。
B5: [費用差異] 工作表中的表格和 [費用分析] 工作表中的圖表會自動更新
B6: 附註：
B7: 我們已在每張工作表的 A 欄提供額外指示。此文字已刻意隱藏。若要移除文字，請選取欄 A，然後選取 [刪除]。若要取消隱藏文字，請選取 A 欄，然後變更字型色彩。
B8: 若要深入了解表格，請在表格內按 SHIFT 並按 F10，選取 [表格] 選項，然後選取 [替代文字]

Sheet 計劃費用
B2: 公司名稱 | K2: 預估費用明細
K3: 會計算顏色較深的儲存格。
B4: 計劃費用 | C4: 1 月 | D4: 2 月 | E4: 3 月 | F4: 4 月 | G4: 5 月 | H4: 6 月 | I4: 7 月 | J4: 8 月 | K4: 9 月 | L4: 10 月 | M4: 11 月 | N4: 12 月 | O4: 年度
B5: 員工成本 | C5: 1 月 | D5: 2 月 | E5: 3 月 | F5: 4 月 | G5: 5 月 | H5: 6 月 | I5: 7 月 | J5: 8 月 | K5: 9 月 | L5: 10 月 | M5: 11 月 | N5: 12 月 | O5: 年度
B6: 薪資 | C6: NT$85,000.00 | D6: NT$85,000.00 | E6: NT$85,000.00 | F6: NT$87,500.00 | G6: NT$87,500.00 | H6: NT$87,500.00 | I6: NT$87,500.00 | J6: NT$92,400.00 | K6: NT$92,400.00 | L6: NT$92,400.00 | M6: NT$92,400.00 | N6: NT$92,400.00 | O6: =SUM(C6:N6) -> NT$1,067,000.00
B7: 福利金 | C7: =C6*0.27 -> NT$22,950.00 | D7: NT$22,950.00 | E7: NT$22,950.00 | F7: NT$23,625.00 | G7: NT$23,625.00 | H7: NT$23,625.00 | I7: NT$23,625.00 | J7: NT$24,948.00 | K7: NT$24,948.00 | L7: NT$24,948.00 | M7: NT$24,948.00 | N7: NT$24,948.00 | O7: =SUM(C7:N7) -> NT$288,090.00
B8: 小計 | C8: =SUBTOTAL(109,員工計劃[1 月]) -> NT$107,950.00 | D8: =SUBTOTAL(109,員工計劃[2 月]) -> NT$107,950.00 | E8: =SUBTOTAL(109,員工計劃[3 月]) -> NT$107,950.00 | F8: =SUBTOTAL(109,員工計劃[4 月]) -> NT$111,125.00 | G8: =SUBTOTAL(109,員工計劃[5 月]) -> NT$111,125.00 | H8: =SUBTOTAL(109,員工計劃[6 月]) -> NT$111,125.00 | I8: =SUBTOTAL(109,員工計劃[7 月]) -> NT$111,125.00 | J8: =SUBTOTAL(109,員工計劃[8 月]) -> NT$117,348.00 | K8: =SUBTOTAL(109,員工計劃[9 月]) -> NT$117,348.00 | L8: =SUBTOTAL(109,員工計劃[10 月]) -> NT$117,348.00 | M8: =SUBTOTAL(109,員工計劃[11 月]) -> NT$117,348.00 | N8: =SUBTOTAL(109,員工計劃[12 月]) -> NT$117,348.00 | O8: =SUBTOTAL(109,員工計劃[年度]) -> NT$1,355,090.00
B10: 辦公室成本 | C10: 1 月 | D10: 2 月 | E10: 3 月 | F10: 4 月 | G10: 5 月 | H10: 6 月 | I10: 7 月 | J10: 8 月 | K10: 9 月 | L10: 10 月 | M10: 11 月 | N10: 12 月 | O10: 年度
B11: 辦公室租金 | C11: NT$9,800.00 | D11: NT$9,800.00 | E11: NT$9,800.00 | F11: NT$9,800.00 | G11: NT$9,800.00 | H11: NT$9,800.00 | I11: NT$9,800.00 | J11: NT$9,800.00 | K11: NT$9,800.00 | L11: NT$9,800.00 | M11: NT$9,800.00 | N11: NT$9,800.00 | O11: =SUM(C11:N11) -> NT$117,600.00
B12: 瓦斯費 | D12: NT$400.00 | E12: NT$400.00 | F12: NT$100.00 | G12: NT$100.00 | H12: NT$100.00 | I12: NT$100.00 | J12: NT$100.00 | K12: NT$100.00 | L12: NT$100.00 | M12: NT$400.00 | N12: NT$400.00 | O12: NT$2,300.00
B13: 電費 | C13: NT$300.00 | D13: NT$300.00 | E13: NT$300.00 | F13: NT$300.00 | G13: NT$300.00 | H13: NT$300.00 | I13: NT$300.00 | J13: NT$300.00 | K13: NT$300.00 | L13: NT$300.00 | M13: NT$300.00 | N13: NT$300.00 | O13: NT$3,600.00
B14: 水費 | C14: NT$40.00 | D14: NT$40.00 | E14: NT$40.00 | F14: NT$40.00 | G14: NT$40.00 | H14: NT$40.00 | I14: NT$40.00 | J14: NT$40.00 | K14: NT$40.00 | L14: NT$40.00 | M14: NT$40.00 | N14: NT$40.00 | O14: NT$480.00
B15: 電話費 | C15: NT$250.00 | D15: NT$250.00 | E15: NT$250.00 | F15: NT$250.00 | G15: NT$250.00 | H15: NT$250.00 | I15: NT$250.00 | J15: NT$250.00 | K15: NT$250.00 | L15: NT$250.00 | M15: NT$250.00 | N15: NT$250.00 | O15: NT$3,000.00
B16: 網際網路連線 | C16: NT$180.00 | D16: NT$180.00 | E16: NT$180.00 | F16: NT$180.00 | G16: NT$180.00 | H16: NT$180.00 | I16: NT$180.00 | J16: NT$180.00 | K16: NT$180.00 | L16: NT$180.00 | M16: NT$180.00 | N16: NT$180.00 | O16: NT$2,160.00
B17: 辦公室用品 | C17: NT$200.00 | D17: NT$200.00 | E17: NT$200.00 | F17: NT$200.00 | G17: NT$200.00 | H17: NT$200.00 | I17: NT$200.00 | J17: NT$200.00 | K17: NT$200.00 | L17: NT$200.00 | M17: NT$200.00 | N17: NT$200.00 | O17: NT$2,400.00
B18: 保全 | C18: NT$600.00 | D18: NT$600.00 | E18: NT$600.00 | F18: NT$600.00 | G18: NT$600.00 | H18: NT$600.00 | I18: NT$600.00 | J18: NT$600.00 | K18: NT$600.00 | L18: NT$600.00 | M18: NT$600.00 | N18: NT$600.00 | O18: NT$7,200.00
B19: 小計 | C19: =SUBTOTAL(109,辦公室計劃[1 月]) -> NT$11,370.00 | D19: =SUBTOTAL(109,辦公室計劃[2 月]) -> NT$11,770.00 | E19: =SUBTOTAL(109,辦公室計劃[3 月]) -> NT$11,770.00 | F19: =SUBTOTAL(109,辦公室計劃[4 月]) -> NT$11,470.00 | G19: =SUBTOTAL(109,辦公室計劃[5 月]) -> NT$11,470.00 | H19: =SUBTOTAL(109,辦公室計劃[6 月]) -> NT$11,470.00 | I19: =SUBTOTAL(109,辦公室計劃[7 月]) -> NT$11,470.00 | J19: =SUBTOTAL(109,辦公室計劃[8 月]) -> NT$11,470.00 | K19: =SUBTOTAL(109,辦公室計劃[9 月]) -> NT$11,470.00 | L19: =SUBTOTAL(109,辦公室計劃[10 月]) -> NT$11,470.00 | M19: =SUBTOTAL(109,辦公室計劃[11 月]) -> NT$11,770.00 | N19: =SUBTOTAL(109,辦公室計劃[12 月]) -> NT$11,770.00 | O19: =SUBTOTAL(109,辦公室計劃[年度]) -> NT$138,740.00
B21: 行銷成本 | C21: 1 月 | D21: 2 月 | E21: 3 月 | F21: 4 月 | G21: 5 月 | H21: 6 月 | I21: 7 月 | J21: 8 月 | K21: 9 月 | L21: 10 月 | M21: 11 月 | N21: 12 月 | O21: 年度
B22: 網站託管 | C22: NT$500.00 | D22: NT$500.00 | E22: NT$500.00 | F22: NT$500.00 | G22: NT$500.00 | H22: NT$500.00 | I22: NT$500.00 | J22: NT$500.00 | K22: NT$500.00 | L22: NT$500.00 | M22: NT$500.00 | N22: NT$500.00 | O22: =SUM(C22:N22) -> NT$6,000.00
B23: 網站更新 | C23: NT$200.00 | D23: NT$200.00 | E23: NT$200.00 | F23: NT$200.00 | G23: NT$200.00 | H23: NT$1,000.00 | I23: NT$200.00 | J23: NT$200.00 | K23: NT$200.00 | L23: NT$200.00 | M23: NT$200.00 | N23: NT$1,000.00 | O23: NT$4,000.00
B24: 準備相關資料 | C24: NT$5,000.00 | D24: NT$0.00 | E24: NT$0.00 | F24: NT$5,000.00 | G24: NT$0.00 | H24: NT$0.00 | I24: NT$5,000.00 | J24: NT$0.00 | K24: NT$0.00 | L24: NT$5,000.00 | M24: NT$0.00 | N24: NT$0.00 | O24: NT$20,000.00
B25: 列印相關資料 | C25: NT$200.00 | D25: NT$200.00 | E25: NT$200.00 | F25: NT$200.00 | G25: NT$200.00 | H25: NT$200.00 | I25: NT$200.00 | J25: NT$200.00 | K25: NT$200.00 | L25: NT$200.00 | M25: NT$200.00 | N25: NT$200.00 | O25: NT$2,400.00
B26: 行銷活動 | C26: NT$2,000.00 | D26: NT$2,000.00 | E26: NT$2,000.00 | F26: NT$5,000.00 | G26: NT$2,000.00 | H26: NT$2,000.00 | I26: NT$2,000.00 | J26: NT$5,000.00 | K26: NT$2,000.00 | L26: NT$2,000.00 | M26: NT$2,000.00 | N26: NT$5,000.00 | O26: NT$33,000.00
B27: 其他費用 | C27: NT$200.00 | D27: NT$200.00 | E27: NT$200.00 | F27: NT$200.00 | G27: NT$200.00 | H27: NT$200.00 | I27: NT$200.00 | J27: NT$200.00 | K27: NT$200.00 | L27: NT$200.00 | M27: NT$200.00 | N27: NT$200.00 | O27: NT$2,400.00
B28: 小計 | C28: =SUBTOTAL(109,行銷計劃[1 月]) -> NT$8,100.00 | D28: =SUBTOTAL(109,行銷計劃[2 月]) -> NT$3,100.00 | E28: =SUBTOTAL(109,行銷計劃[3 月]) -> NT$3,100.00 | F28: =SUBTOTAL(109,行銷計劃[4 月]) -> NT$11,100.00 | G28: =SUBTOTAL(109,行銷計劃[5 月]) -> NT$3,100.00 | H28: =SUBTOTAL(109,行銷計劃[6 月]) -> NT$3,900.00 | I28: =SUBTOTAL(109,行銷計劃[7 月]) -> NT$8,100.00 | J28: =SUBTOTAL(109,行銷計劃[8 月]) -> NT$6,100.00 | K28: =SUBTOTAL(109,行銷計劃[9 月]) -> NT$3,100.00 | L28: =SUBTOTAL(109,行銷計劃[10 月]) -> NT$8,100.00 | M28: =SUBTOTAL(109,行銷計劃[11 月]) -> NT$3,100.00 | N28: =SUBTOTAL(109,行銷計劃[12 月]) -> NT$6,900.00 | O28: =SUBTOTAL(109,行銷計劃[年度]) -> NT$67,800.00
B30: 教育訓練/差旅 | C30: 1 月 | D30: 2 月 | E30: 3 月 | F30: 4 月 | G30: 5 月 | H30: 6 月 | I30: 7 月 | J30: 8 月 | K30: 9 月 | L30: 10 月 | M30: 11 月 | N30: 12 月 | O30: 年度
B31: 教育訓練課程 | C31: NT$2,000.00 | D31: NT$2,000.00 | E31: NT$2,000.00 | F31: NT$2,000.00 | G31: NT$2,000.00 | H31: NT$2,000.00 | I31: NT$2,000.00 | J31: NT$2,000.00 | K31: NT$2,000.00 | L31: NT$2,000.00 | M31: NT$2,000.00 | N31: NT$2,000.00 | O31: =SUM(C31:N31) -> NT$24,000.00
B32: 教育訓練相關差旅費用 | C32: NT$2,000.00 | D32: NT$2,000.00 | E32: NT$2,000.00 | F32: NT$2,000.00 | G32: NT$2,000.00 | H32: NT$2,000.00 | I32: NT$2,000.00 | J32: NT$2,000.00 | K32: NT$2,000.00 | L32: NT$2,000.00 | M32: NT$2,000.00 | N32: NT$2,000.00 | O32: =SUM(C32:N32) -> NT$24,000.00
B33: 小計 | C33: =SUBTOTAL(109,教育訓練與差旅計劃[1 月]) -> NT$4,000.00 | D33: =SUBTOTAL(109,教育訓練與差旅計劃[2 月]) -> NT$4,000.00 | E33: =SUBTOTAL(109,教育訓練與差旅計劃[3 月]) -> NT$4,000.00 | F33: =SUBTOTAL(109,教育訓練與差旅計劃[4 月]) -> NT$4,000.00 | G33: =SUBTOTAL(109,教育訓練與差旅計劃[5 月]) -> NT$4,000.00 | H33: =SUBTOTAL(109,教育訓練與差旅計劃[6 月]) -> NT$4,000.00 | I33: =SUBTOTAL(109,教育訓練與差旅計劃[7 月]) -> NT$4,000.00 | J33: =SUBTOTAL(109,教育訓練與差旅計劃[8 月]) -> NT$4,000.00 | K33: =SUBTOTAL(109,教育訓練與差旅計劃[9 月]) -> NT$4,000.00 | L33: =SUBTOTAL(109,教育訓練與差旅計劃[10 月]) -> NT$4,000.00 | M33: =SUBTOTAL(109,教育訓練與差旅計劃[11 月]) -> NT$4,000.00 | N33: =SUBTOTAL(109,教育訓練與差旅計劃[12 月]) -> NT$4,000.00 | O33: =SUBTOTAL(109,教育訓練與差旅計劃[年度]) -> NT$48,000.00
B35: 總計 | C35: 1 月 | D35: 2 月 | E35: 3 月 | F35: 4 月 | G35: 5 月 | H35: 6 月 | I35: 7 月 | J35: 8 月 | K35: 9 月 | L35: 10 月 | M35: 11 月 | N35: 12 月 | O35: 年度
B36: 每月計劃費用 | C36: =教育訓練與差旅計劃[[#Totals],[1 月]]+行銷計劃[[#Totals],[1 月]]+辦公室計劃[[#Totals],[1 月]]+員工計劃[[#Totals],[1 月]] -> NT$131,420.00 | D36: =教育訓練與差旅計劃[[#Totals],[2 月]]+行銷計劃[[#Totals],[2 月]]+辦公室計劃[[#Totals],[2 月]]+員工計劃[[#Totals],[2 月]] -> NT$126,820.00 | E36: =教育訓練與差旅計劃[[#Totals],[3 月]]+行銷計劃[[#Totals],[3 月]]+辦公室計劃[[#Totals],[3 月]]+員工計劃[[#Totals],[3 月]] -> NT$126,820.00 | F36: =教育訓練與差旅計劃[[#Totals],[4 月]]+行銷計劃[[#Totals],[4 月]]+辦公室計劃[[#Totals],[4 月]]+員工計劃[[#Totals],[4 月]] -> NT$137,695.00 | G36: =教育訓練與差旅計劃[[#Totals],[5 月]]+行銷計劃[[#Totals],[5 月]]+辦公室計劃[[#Totals],[5 月]]+員工計劃[[#Totals],[5 月]] -> NT$129,695.00 | H36: =教育訓練與差旅計劃[[#Totals],[6 月]]+行銷計劃[[#Totals],[6 月]]+辦公室計劃[[#Totals],[6 月]]+員工計劃[[#Totals],[6 月]] -> NT$130,495.00 | I36: =教育訓練與差旅計劃[[#Totals],[7 月]]+行銷計劃[[#Totals],[7 月]]+辦公室計劃[[#Totals],[7 月]]+員工計劃[[#Totals],[7 月]] -> NT$134,695.00 | J36: =教育訓練與差旅計劃[[#Totals],[8 月]]+行銷計劃[[#Totals],[8 月]]+辦公室計劃[[#Totals],[8 月]]+員工計劃[[#Totals],[8 月]] -> NT$138,918.00 | K36: =教育訓練與差旅計劃[[#Totals],[9 月]]+行銷計劃[[#Totals],[9 月]]+辦公室計劃[[#Totals],[9 月]]+員工計劃[[#Totals],[9 月]] -> NT$135,918.00 | L36: =教育訓練與差旅計劃[[#Totals],[10 月]]+行銷計劃[[#Totals],[10 月]]+辦公室計劃[[#Totals],[10 月]]+員工計劃[[#Totals],[10 月]] -> NT$140,918.00 | M36: =教育訓練與差旅計劃[[#Totals],[11 月]]+行銷計劃[[#Totals],[11 月]]+辦公室計劃[[#Totals],[11 月]]+員工計劃[[#Totals],[11 月]] -> NT$136,218.00 | N36: =教育訓練與差旅計劃[[#Totals],[12 月]]+行銷計劃[[#Totals],[12 月]]+辦公室計劃[[#Totals],[12 月]]+員工計劃[[#Totals],[12 月]] -> NT$140,018.00 | O36: =教育訓練與差旅計劃[[#Totals],[年度]]+行銷計劃[[#Totals],[年度]]+辦公室計劃[[#Totals],[年度]]+員工計劃[[#Totals],[年度]] -> NT$1,609,630.00
B37: 總計計劃費用 | C37: =SUM($C$36:C36) -> NT$131,420.00 | D37: =SUM($C$36:D36) -> NT$258,240.00 | E37: =SUM($C$36:E36) -> NT$385,060.00 | F37: =SUM($C$36:F36) -> NT$522,755.00 | G37: =SUM($C$36:G36) -> NT$652,450.00 | H37: =SUM($C$36:H36) -> NT$782,945.00 | I37: =SUM($C$36:I36) -> NT$917,640.00 | J37: =SUM($C$36:J36) -> NT$1,056,558.00 | K37: =SUM($C$36:K36) -> NT$1,192,476.00 | L37: =SUM($C$36:L36) -> NT$1,333,394.00 | M37: =SUM($C$36:M36) -> NT$1,469,612.00 | N37: =SUM($C$36:N36) -> NT$1,609,630.00

Sheet 實際費用
B2: =計劃費用!B2:D3 -> 公司名稱 | K2: =工作表_標題 -> 預估費用明細
K3: 會計算顏色較深的儲存格。
B4: 實際費用 | C4: 1 月 | D4: 2 月 | E4: 3 月 | F4: 4 月 | G4: 5 月 | H4: 6 月 | I4: 7 月 | J4: 8 月 | K4: 9 月 | L4: 10 月 | M4: 11 月 | N4: 12 月 | O4: 年度
B5: 員工成本 | C5: 1 月 | D5: 2 月 | E5: 3 月 | F5: 4 月 | G5: 5 月 | H5: 6 月 | I5: 7 月 | J5: 8 月 | K5: 9 月 | L5: 10 月 | M5: 11 月 | N5: 12 月 | O5: 年度
B6: 薪資 | C6: NT$85,000.00 | D6: NT$85,000.00 | E6: NT$85,000.00 | F6: NT$88,000.00 | G6: NT$88,000.00 | H6: NT$88,000.00 | O6: =SUM(C6:N6) -> NT$519,000.00
B7: 福利金 | C7: =C6*0.27 -> NT$22,950.00 | D7: NT$22,950.00 | E7: NT$22,950.00 | F7: NT$23,760.00 | G7: NT$23,760.00 | H7: NT$23,760.00 | I7: NT$0.00 | J7: NT$0.00 | K7: NT$0.00 | L7: NT$0.00 | M7: NT$0.00 | N7: NT$0.00 | O7: =SUM(C7:N7) -> NT$140,130.00
B8: 小計 | C8: =SUBTOTAL(109,員工實際數字[1 月]) -> NT$107,950.00 | D8: =SUBTOTAL(109,員工實際數字[2 月]) -> NT$107,950.00 | E8: =SUBTOTAL(109,員工實際數字[3 月]) -> NT$107,950.00 | F8: =SUBTOTAL(109,員工實際數字[4 月]) -> NT$111,760.00 | G8: =SUBTOTAL(109,員工實際數字[5 月]) -> NT$111,760.00 | H8: =SUBTOTAL(109,員工實際數字[6 月]) -> NT$111,760.00 | I8: =SUBTOTAL(109,員工實際數字[7 月]) -> NT$0.00 | J8: =SUBTOTAL(109,員工實際數字[8 月]) -> NT$0.00 | K8: =SUBTOTAL(109,員工實際數字[9 月]) -> NT$0.00 | L8: =SUBTOTAL(109,員工實際數字[10 月]) -> NT$0.00 | M8: =SUBTOTAL(109,員工實際數字[11 月]) -> NT$0.00 | N8: =SUBTOTAL(109,員工實際數字[12 月]) -> NT$0.00 | O8: =SUBTOTAL(109,員工實際數字[年度]) -> NT$659,130.00
B10: 辦公室成本 | C10: 1 月 | D10: 2 月 | E10: 3 月 | F10: 4 月 | G10: 5 月 | H10: 6 月 | I10: 7 月 | J10: 8 月 | K10: 9 月 | L10: 10 月 | M10: 11 月 | N10: 12 月 | O10: 年度
B11: 辦公室租金 | C11: NT$9,800.00 | D11: NT$9,800.00 | E11: NT$9,800.00 | F11: NT$9,800.00 | G11: NT$9,800.00 | H11: NT$9,800.00 | O11: =SUM(C11:N11) -> NT$58,800.00
B12: 瓦斯費 | C12: NT$4.00 | D12: NT$430.00 | E12: NT$385.00 | F12: NT$230.00 | G12: NT$87.00 | H12: NT$88.00 | O12: NT$1,224.00
B13: 電費 | C13: NT$288.00 | D13: NT$278.00 | E13: NT$268.00 | F13: NT$299.00 | G13: NT$306.00 | H13: NT$290.00 | O13: NT$1,729.00
B14: 水費 | C14: NT$35.00 | D14: NT$33.00 | E14: NT$34.00 | F14: NT$36.00 | G14: NT$34.00 | H14: NT$36.00 | O14: NT$208.00
B15: 電話費 | C15: NT$224.00 | D15: NT$235.00 | E15: NT$265.00 | F15: NT$245.00 | G15: NT$245.00 | H15: NT$220.00 | O15: NT$1,434.00
B16: 網際網路連線 | C16: NT$180.00 | D16: NT$180.00 | E16: NT$180.00 | F16: NT$180.00 | G16: NT$180.00 | H16: NT$180.00 | O16: NT$1,080.00
B17: 辦公室用品 | C17: NT$256.00 | D17: NT$142.00 | E17: NT$160.00 | F17: NT$221.00 | G17: NT$256.00 | H17: NT$240.00 | O17: NT$1,275.00
B18: 保全 | C18: NT$600.00 | D18: NT$600.00 | E18: NT$600.00 | F18: NT$600.00 | G18: NT$600.00 | H18: NT$600.00 | O18: NT$3,600.00
B19: 小計 | C19: =SUBTOTAL(109,辦公室實際數字[1 月]) -> NT$11,387.00 | D19: =SUBTOTAL(109,辦公室實際數字[2 月]) -> NT$11,698.00 | E19: =SUBTOTAL(109,辦公室實際數字[3 月]) -> NT$11,692.00 | F19: =SUBTOTAL(109,辦公室實際數字[4 月]) -> NT$11,611.00 | G19: =SUBTOTAL(109,辦公室實際數字[5 月]) -> NT$11,508.00 | H19: =SUBTOTAL(109,辦公室實際數字[6 月]) -> NT$11,454.00 | I19: =SUBTOTAL(109,辦公室實際數字[7 月]) -> NT$0.00 | J19: =SUBTOTAL(109,辦公室實際數字[8 月]) -> NT$0.00 | K19: =SUBTOTAL(109,辦公室實際數字[9 月]) -> NT$0.00 | L19: =SUBTOTAL(109,辦公室實際數字[10 月]) -> NT$0.00 | M19: =SUBTOTAL(109,辦公室實際數字[11 月]) -> NT$0.00 | N19: =SUBTOTAL(109,辦公室實際數字[12 月]) -> NT$0.00 | O19: =SUBTOTAL(109,辦公室實際數字[年度]) -> NT$69,350.00
B21: 行銷成本 | C21: 1 月 | D21: 2 月 | E21: 3 月 | F21: 4 月 | G21: 5 月 | H21: 6 月 | I21: 7 月 | J21: 8 月 | K21: 9 月 | L21: 10 月 | M21: 11 月 | N21: 12 月 | O21: 年度
B22: 網站託管 | C22: NT$500.00 | D22: NT$500.00 | E22: NT$500.00 | F22: NT$500.00 | G22: NT$500.00 | H22: NT$500.00 | O22: =SUM(C22:N22) -> NT$3,000.00
B23: 網站更新 | C23: NT$200.00 | D23: NT$200.00 | E23: NT$200.00 | F23: NT$200.00 | G23: NT$200.00 | H23: NT$1,500.00 | O23: NT$2,500.00
B24: 準備相關資料 | C24: NT$4,800.00 | D24: NT$0.00 | E24: NT$0.00 | F24: NT$5,500.00 | G24: NT$0.00 | H24: NT$0.00 | O24: NT$10,300.00
B25: 列印相關資料 | C25: NT$100.00 | D25: NT$500.00 | E25: NT$100.00 | F25: NT$100.00 | G25: NT$600.00 | H25: NT$180.00 | O25: NT$1,580.00
B26: 行銷活動 | C26: NT$1,800.00 | D26: NT$2,200.00 | E26: NT$2,200.00 | F26: NT$4,700.00 | G26: NT$1,500.00 | H26: NT$2,300.00 | O26: NT$14,700.00
B27: 其他費用 | C27: NT$145.00 | D27: NT$156.00 | E27: NT$123.00 | F27: NT$223.00 | G27: NT$187.00 | H27: NT$245.00 | O27: NT$1,079.00
B28: 小計 | C28: =SUBTOTAL(109,行銷實際數字[1 月]) -> NT$7,545.00 | D28: =SUBTOTAL(109,行銷實際數字[2 月]) -> NT$3,556.00 | E28: =SUBTOTAL(109,行銷實際數字[3 月]) -> NT$3,123.00 | F28: =SUBTOTAL(109,行銷實際數字[4 月]) -> NT$11,223.00 | G28: =SUBTOTAL(109,行銷實際數字[5 月]) -> NT$2,987.00 | H28: =SUBTOTAL(109,行銷實際數字[6 月]) -> NT$4,725.00 | I28: =SUBTOTAL(109,行銷實際數字[7 月]) -> NT$0.00 | J28: =SUBTOTAL(109,行銷實際數字[8 月]) -> NT$0.00 | K28: =SUBTOTAL(109,行銷實際數字[9 月]) -> NT$0.00 | L28: =SUBTOTAL(109,行銷實際數字[10 月]) -> NT$0.00 | M28: =SUBTOTAL(109,行銷實際數字[11 月]) -> NT$0.00 | N28: =SUBTOTAL(109,行銷實際數字[12 月]) -> NT$0.00 | O28: =SUBTOTAL(109,行銷實際數字[年度]) -> NT$33,159.00
B30: 教育訓練/差旅 | C30: 1 月 | D30: 2 月 | E30: 3 月 | F30: 4 月 | G30: 5 月 | H30: 6 月 | I30: 7 月 | J30: 8 月 | K30: 9 月 | L30: 10 月 | M30: 11 月 | N30: 12 月 | O30: 年度
B31: 教育訓練課程 | C31: NT$1,600.00 | D31: NT$2,400.00 | E31: NT$1,400.00 | F31: NT$1,600.00 | G31: NT$1,200.00 | H31: NT$2,800.00 | O31: =SUM(C31:N31) -> NT$11,000.00
B32: 教育訓練相關差旅費用 | C32: NT$1,200.00 | D32: NT$2,200.00 | E32: NT$1,400.00 | F32: NT$1,200.00 | G32: NT$800.00 | H32: NT$3,500.00 | O32: =SUM(C32:N32) -> NT$10,300.00
B33: 小計 | C33: =SUBTOTAL(109,教育訓練與差旅實際數字[1 月]) -> NT$2,800.00 | D33: =SUBTOTAL(109,教育訓練與差旅實際數字[2 月]) -> NT$4,600.00 | E33: =SUBTOTAL(109,教育訓練與差旅實際數字[3 月]) -> NT$2,800.00 | F33: =SUBTOTAL(109,教育訓練與差旅實際數字[4 月]) -> NT$2,800.00 | G33: =SUBTOTAL(109,教育訓練與差旅實際數字[5 月]) -> NT$2,000.00 | H33: =SUBTOTAL(109,教育訓練與差旅實際數字[6 月]) -> NT$6,300.00 | I33: =SUBTOTAL(109,教育訓練與差旅實際數字[7 月]) -> NT$0.00 | J33: =SUBTOTAL(109,教育訓練與差旅實際數字[8 月]) -> NT$0.00 | K33: =SUBTOTAL(109,教育訓練與差旅實際數字[9 月]) -> NT$0.00 | L33: =SUBTOTAL(109,教育訓練與差旅實際數字[10 月]) -> NT$0.00 | M33: =SUBTOTAL(109,教育訓練與差旅實際數字[11 月]) -> NT$0.00 | N33: =SUBTOTAL(109,教育訓練與差旅實際數字[12 月]) -> NT$0.00 | O33: =SUBTOTAL(109,教育訓練與差旅實際數字[年度]) -> NT$21,300.00
B35: 總計計劃費用 | C35: 1 月 | D35: 2 月 | E35: 3 月 | F35: 4 月 | G35: 5 月 | H35: 6 月 | I35: 7 月 | J35: 8 月 | K35: 9 月 | L35: 10 月 | M35: 11 月 | N35: 12 月 | O35: 年度
B36: 每月實際費用 | C36: =教育訓練與差旅實際數字[[#Totals],[1 月]]+行銷實際數字[[#Totals],[1 月]]+辦公室實際數字[[#Totals],[1 月]]+員工實際數字[[#Totals],[1 月]] -> NT$129,682.00 | D36: =教育訓練與差旅實際數字[[#Totals],[2 月]]+行銷實際數字[[#Totals],[2 月]]+辦公室實際數字[[#Totals],[2 月]]+員工實際數字[[#Totals],[2 月]] -> NT$127,804.00 | E36: =教育訓練與差旅實際數字[[#Totals],[3 月]]+行銷實際數字[[#Totals],[3 月]]+辦公室實際數字[[#Totals],[3 月]]+員工實際數字[[#Totals],[3 月]] -> NT$125,565.00 | F36: =教育訓練與差旅實際數字[[#Totals],[4 月]]+行銷實際數字[[#Totals],[4 月]]+辦公室實際數字[[#Totals],[4 月]]+員工實際數字[[#Totals],[4 月]] -> NT$137,394.00 | G36: =教育訓練與差旅實際數字[[#Totals],[5 月]]+行銷實際數字[[#Totals],[5 月]]+辦公室實際數字[[#Totals],[5 月]]+員工實際數字[[#Totals],[5 月]] -> NT$128,255.00 | H36: =教育訓練與差旅實際數字[[#Totals],[6 月]]+行銷實際數字[[#Totals],[6 月]]+辦公室實際數字[[#Totals],[6 月]]+員工實際數字[[#Totals],[6 月]] -> NT$134,239.00 | I36: =教育訓練與差旅實際數字[[#Totals],[7 月]]+行銷實際數字[[#Totals],[7 月]]+辦公室實際數字[[#Totals],[7 月]]+員工實際數字[[#Totals],[7 月]] -> NT$0.00 | J36: =教育訓練與差旅實際數字[[#Totals],[8 月]]+行銷實際數字[[#Totals],[8 月]]+辦公室實際數字[[#Totals],[8 月]]+員工實際數字[[#Totals],[8 月]] -> NT$0.00 | K36: =教育訓練與差旅實際數字[[#Totals],[9 月]]+行銷實際數字[[#Totals],[9 月]]+辦公室實際數字[[#Totals],[9 月]]+員工實際數字[[#Totals],[9 月]] -> NT$0.00 | L36: =教育訓練與差旅實際數字[[#Totals],[10 月]]+行銷實際數字[[#Totals],[10 月]]+辦公室實際數字[[#Totals],[10 月]]+員工實際數字[[#Totals],[10 月]] -> NT$0.00 | M36: =教育訓練與差旅實際數字[[#Totals],[11 月]]+行銷實際數字[[#Totals],[11 月]]+辦公室實際數字[[#Totals],[11 月]]+員工實際數字[[#Totals],[11 月]] -> NT$0.00 | N36: =教育訓練與差旅實際數字[[#Totals],[12 月]]+行銷實際數字[[#Totals],[12 月]]+辦公室實際數字[[#Totals],[12 月]]+員工實際數字[[#Totals],[12 月]] -> NT$0.00 | O36: =教育訓練與差旅實際數字[[#Totals],[年度]]+行銷實際數字[[#Totals],[年度]]+辦公室實際數字[[#Totals],[年度]]+員工實際數字[[#Totals],[年度]] -> NT$782,939.00
B37: 總計實際費用 | C37: =SUM($C$36:C36) -> NT$129,682.00 | D37: =SUM($C$36:D36) -> NT$257,486.00 | E37: =SUM($C$36:E36) -> NT$383,051.00 | F37: =SUM($C$36:F36) -> NT$520,445.00 | G37: =SUM($C$36:G36) -> NT$648,700.00 | H37: =SUM($C$36:H36) -> NT$782,939.00 | I37: =SUM($C$36:I36) -> NT$782,939.00 | J37: =SUM($C$36:J36) -> NT$782,939.00 | K37: =SUM($C$36:K36) -> NT$782,939.00 | L37: =SUM($C$36:L36) -> NT$782,939.00 | M37: =SUM($C$36:M36) -> NT$782,939.00 | N37: =SUM($C$36:N36) -> NT$782,939.00 | O37: =教育訓練與差旅實際數字[[#Totals],[年度]]+行銷實際數字[[#Totals],[年度]]+辦公室實際數字[[#Totals],[年度]]+員工實際數字[[#Totals],[年度]] -> NT$782,939.00

Sheet 費用差異
B2: =計劃費用!B2:D3 -> 公司名稱 | K2: =工作表_標題 -> 預估費用明細
K3: 會計算顏色較深的儲存格。
B4: 費用差異 | C4: 1 月 | D4: 2 月 | E4: 3 月 | F4: 4 月 | G4: 5 月 | H4: 6 月 | I4: 7 月 | J4: 8 月 | K4: 9 月 | L4: 10 月 | M4: 11 月 | N4: 12 月 | O4: 年度
B5: 員工成本 | C5: 1 月 | D5: 2 月 | E5: 3 月 | F5: 4 月 | G5: 5 月 | H5: 6 月 | I5: 7 月 | J5: 8 月 | K5: 9 月 | L5: 10 月 | M5: 11 月 | N5: 12 月 | O5: 年度
B6: 薪資 | C6: =INDEX(員工計劃[],MATCH(INDEX(員工差異[],ROW()-ROW(員工差異[[#Headers],[1 月]]),1),INDEX(員工計劃[],,1),0),MATCH(員工差異[[#Headers],[1 月]],員工計劃[#Headers],0))-INDEX(員工實際數字[],MATCH(INDEX(員工差異[],ROW()-ROW(員工差異[[#Headers],[1 月]]),1),INDEX(員工計劃[],,1),0),MATCH(員工差異[[#Headers],[1 月]],員工實際數字[#Headers],0)) -> NT$0.00 | D6: =INDEX(員工計劃[],MATCH(INDEX(員工差異[],ROW()-ROW(員工差異[[#Headers],[2 月]]),1),INDEX(員工計劃[],,1),0),MATCH(員工差異[[#Headers],[2 月]],員工計劃[#Headers],0))-INDEX(員工實際數字[],MATCH(INDEX(員工差異[],ROW()-ROW(員工差異[[#Headers],[2 月]]),1),INDEX(員工計劃[],,1),0),MATCH(員工差異[[#Headers],[2 月]],員工實際數字[#Headers],0)) -> NT$0.00 | E6: =INDEX(員工計劃[],MATCH(INDEX(員工差異[],ROW()-ROW(員工差異[[#Headers],[3 月]]),1),INDEX(員工計劃[],,1),0),MATCH(員工差異[[#Headers],[3 月]],員工計劃[#Headers],0))-INDEX(員工實際數字[],MATCH(INDEX(員工差異[],ROW()-ROW(員工差異[[#Headers],[3 月]]),1),INDEX(員工計劃[],,1),0),MATCH(員工差異[[#Headers],[3 月]],員工實際數字[#Headers],0)) -> NT$0.00 | F6: =INDEX(員工計劃[],MATCH(INDEX(員工差異[],ROW()-ROW(員工差異[[#Headers],[4 月]]),1),INDEX(員工計劃[],,1),0),MATCH(員工差異[[#Headers],[4 月]],員工計劃[#Headers],0))-INDEX(員工實際數字[],MATCH(INDEX(員工差異[],ROW()-ROW(員工差異[[#Headers],[4 月]]),1),INDEX(員工計劃[],,1),0),MATCH(員工差異[[#Headers],[4 月]],員工實際數字[#Headers],0)) -> (NT$500.00) | G6: =INDEX(員工計劃[],MATCH(INDEX(員工差異[],ROW()-ROW(員工差異[[#Headers],[5 月]]),1),INDEX(員工計劃[],,1),0),MATCH(員工差異[[#Headers],[5 月]],員工計劃[#Headers],0))-INDEX(員工實際數字[],MATCH(INDEX(員工差異[],ROW()-ROW(員工差異[[#Headers],[5 月]]),1),INDEX(員工計劃[],,1),0),MATCH(員工差異[[#Headers],[5 月]],員工實際數字[#Headers],0)) -> (NT$500.00) | H6: =INDEX(員工計劃[],MATCH(INDEX(員工差異[],ROW()-ROW(員工差異[[#Headers],[6 月]]),1),INDEX(員工計劃[],,1),0),MATCH(員工差異[[#Headers],[6 月]],員工計劃[#Headers],0))-INDEX(員工實際數字[],MATCH(INDEX(員工差異[],ROW()-ROW(員工差異[[#Headers],[6 月]]),1),INDEX(員工計劃[],,1),0),MATCH(員工差異[[#Headers],[6 月]],員工實際數字[#Headers],0)) -> (NT$500.00) | I6: =INDEX(員工計劃[],MATCH(INDEX(員工差異[],ROW()-ROW(員工差異[[#Headers],[7 月]]),1),INDEX(員工計劃[],,1),0),MATCH(員工差異[[#Headers],[7 月]],員工計劃[#Headers],0))-INDEX(員工實際數字[],MATCH(INDEX(員工差異[],ROW()-ROW(員工差異[[#Headers],[7 月]]),1),INDEX(員工計劃[],,1),0),MATCH(員工差異[[#Headers],[7 月]],員工實際數字[#Headers],0)) -> NT$87,500.00 | J6: =INDEX(員工計劃[],MATCH(INDEX(員工差異[],ROW()-ROW(員工差異[[#Headers],[8 月]]),1),INDEX(員工計劃[],,1),0),MATCH(員工差異[[#Headers],[8 月]],員工計劃[#Headers],0))-INDEX(員工實際數字[],MATCH(INDEX(員工差異[],ROW()-ROW(員工差異[[#Headers],[8 月]]),1),INDEX(員工計劃[],,1),0),MATCH(員工差異[[#Headers],[8 月]],員工實際數字[#Headers],0)) -> NT$92,400.00 | K6: =INDEX(員工計劃[],MATCH(INDEX(員工差異[],ROW()-ROW(員工差異[[#Headers],[9 月]]),1),INDEX(員工計劃[],,1),0),MATCH(員工差異[[#Headers],[9 月]],員工計劃[#Headers],0))-INDEX(員工實際數字[],MATCH(INDEX(員工差異[],ROW()-ROW(員工差異[[#Headers],[9 月]]),1),INDEX(員工計劃[],,1),0),MATCH(員工差異[[#Headers],[9 月]],員工實際數字[#Headers],0)) -> NT$92,400.00 | L6: =INDEX(員工計劃[],MATCH(INDEX(員工差異[],ROW()-ROW(員工差異[[#Headers],[10 月]]),1),INDEX(員工計劃[],,1),0),MATCH(員工差異[[#Headers],[10 月]],員工計劃[#Headers],0))-INDEX(員工實際數字[],MATCH(INDEX(員工差異[],ROW()-ROW(員工差異[[#Headers],[10 月]]),1),INDEX(員工計劃[],,1),0),MATCH(員工差異[[#Headers],[10 月]],員工實際數字[#Headers],0)) -> NT$92,400.00 | M6: =INDEX(員工計劃[],MATCH(INDEX(員工差異[],ROW()-ROW(員工差異[[#Headers],[11 月]]),1),INDEX(員工計劃[],,1),0),MATCH(員工差異[[#Headers],[11 月]],員工計劃[#Headers],0))-INDEX(員工實際數字[],MATCH(INDEX(員工差異[],ROW()-ROW(員工差異[[#Headers],[11 月]]),1),INDEX(員工計劃[],,1),0),MATCH(員工差異[[#Headers],[11 月]],員工實際數字[#Headers],0)) -> NT$92,400.00 | N6: =INDEX(員工計劃[],MATCH(INDEX(員工差異[],ROW()-ROW(員工差異[[#Headers],[12 月]]),1),INDEX(員工計劃[],,1),0),MATCH(員工差異[[#Headers],[12 月]],員工計劃[#Headers],0))-INDEX(員工實際數字[],MATCH(INDEX(員工差異[],ROW()-ROW(員工差異[[#Headers],[12 月]]),1),INDEX(員工計劃[],,1),0),MATCH(員工差異[[#Headers],[12 月]],員工實際數字[#Headers],0)) -> NT$92,400.00 | O6: =SUM(員工差異[[#This Row],[1 月]:[12 月]]) -> NT$548,000.00
B7: 福利金 | C7: =INDEX(員工計劃[],MATCH(INDEX(員工差異[],ROW()-ROW(員工差異[[#Headers],[1 月]]),1),INDEX(員工計劃[],,1),0),MATCH(員工差異[[#Headers],[1 月]],員工計劃[#Headers],0))-INDEX(員工實際數字[],MATCH(INDEX(員工差異[],ROW()-ROW(員工差異[[#Headers],[1 月]]),1),INDEX(員工計劃[],,1),0),MATCH(員工差異[[#Headers],[1 月]],員工實際數字[#Headers],0)) -> NT$0.00 | D7: =INDEX(員工計劃[],MATCH(INDEX(員工差異[],ROW()-ROW(員工差異[[#Headers],[2 月]]),1),INDEX(員工計劃[],,1),0),MATCH(員工差異[[#Headers],[2 月]],員工計劃[#Headers],0))-INDEX(員工實際數字[],MATCH(INDEX(員工差異[],ROW()-ROW(員工差異[[#Headers],[2 月]]),1),INDEX(員工計劃[],,1),0),MATCH(員工差異[[#Headers],[2 月]],員工實際數字[#Headers],0)) -> NT$0.00 | E7: =INDEX(員工計劃[],MATCH(INDEX(員工差異[],ROW()-ROW(員工差異[[#Headers],[3 月]]),1),INDEX(員工計劃[],,1),0),MATCH(員工差異[[#Headers],[3 月]],員工計劃[#Headers],0))-INDEX(員工實際數字[],MATCH(INDEX(員工差異[],ROW()-ROW(員工差異[[#Headers],[3 月]]),1),INDEX(員工計劃[],,1),0),MATCH(員工差異[[#Headers],[3 月]],員工實際數字[#Headers],0)) -> NT$0.00 | F7: =INDEX(員工計劃[],MATCH(INDEX(員工差異[],ROW()-ROW(員工差異[[#Headers],[4 月]]),1),INDEX(員工計劃[],,1),0),MATCH(員工差異[[#Headers],[4 月]],員工計劃[#Headers],0))-INDEX(員工實際數字[],MATCH(INDEX(員工差異[],ROW()-ROW(員工差異[[#Headers],[4 月]]),1),INDEX(員工計劃[],,1),0),MATCH(員工差異[[#Headers],[4 月]],員工實際數字[#Headers],0)) -> (NT$135.00) | G7: =INDEX(員工計劃[],MATCH(INDEX(員工差異[],ROW()-ROW(員工差異[[#Headers],[5 月]]),1),INDEX(員工計劃[],,1),0),MATCH(員工差異[[#Headers],[5 月]],員工計劃[#Headers],0))-INDEX(員工實際數字[],MATCH(INDEX(員工差異[],ROW()-ROW(員工差異[[#Headers],[5 月]]),1),INDEX(員工計劃[],,1),0),MATCH(員工差異[[#Headers],[5 月]],員工實際數字[#Headers],0)) -> (NT$135.00) | H7: =INDEX(員工計劃[],MATCH(INDEX(員工差異[],ROW()-ROW(員工差異[[#Headers],[6 月]]),1),INDEX(員工計劃[],,1),0),MATCH(員工差異[[#Headers],[6 月]],員工計劃[#Headers],0))-INDEX(員工實際數字[],MATCH(INDEX(員工差異[],ROW()-ROW(員工差異[[#Headers],[6 月]]),1),INDEX(員工計劃[],,1),0),MATCH(員工差異[[#Headers],[6 月]],員工實際數字[#Headers],0)) -> (NT$135.00) | I7: =INDEX(員工計劃[],MATCH(INDEX(員工差異[],ROW()-ROW(員工差異[[#Headers],[7 月]]),1),INDEX(員工計劃[],,1),0),MATCH(員工差異[[#Headers],[7 月]],員工計劃[#Headers],0))-INDEX(員工實際數字[],MATCH(INDEX(員工差異[],ROW()-ROW(員工差異[[#Headers],[7 月]]),1),INDEX(員工計劃[],,1),0),MATCH(員工差異[[#Headers],[7 月]],員工實際數字[#Headers],0)) -> NT$23,625.00 | J7: =INDEX(員工計劃[],MATCH(INDEX(員工差異[],ROW()-ROW(員工差異[[#Headers],[8 月]]),1),INDEX(員工計劃[],,1),0),MATCH(員工差異[[#Headers],[8 月]],員工計劃[#Headers],0))-INDEX(員工實際數字[],MATCH(INDEX(員工差異[],ROW()-ROW(員工差異[[#Headers],[8 月]]),1),INDEX(員工計劃[],,1),0),MATCH(員工差異[[#Headers],[8 月]],員工實際數字[#Headers],0)) -> NT$24,948.00 | K7: =INDEX(員工計劃[],MATCH(INDEX(員工差異[],ROW()-ROW(員工差異[[#Headers],[9 月]]),1),INDEX(員工計劃[],,1),0),MATCH(員工差異[[#Headers],[9 月]],員工計劃[#Headers],0))-INDEX(員工實際數字[],MATCH(INDEX(員工差異[],ROW()-ROW(員工差異[[#Headers],[9 月]]),1),INDEX(員工計劃[],,1),0),MATCH(員工差異[[#Headers],[9 月]],員工實際數字[#Headers],0)) -> NT$24,948.00 | L7: =INDEX(員工計劃[],MATCH(INDEX(員工差異[],ROW()-ROW(員工差異[[#Headers],[10 月]]),1),INDEX(員工計劃[],,1),0),MATCH(員工差異[[#Headers],[10 月]],員工計劃[#Headers],0))-INDEX(員工實際數字[],MATCH(INDEX(員工差異[],ROW()-ROW(員工差異[[#Headers],[10 月]]),1),INDEX(員工計劃[],,1),0),MATCH(員工差異[[#Headers],[10 月]],員工實際數字[#Headers],0)) -> NT$24,948.00 | M7: =INDEX(員工計劃[],MATCH(INDEX(員工差異[],ROW()-ROW(員工差異[[#Headers],[11 月]]),1),INDEX(員工計劃[],,1),0),MATCH(員工差異[[#Headers],[11 月]],員工計劃[#Headers],0))-INDEX(員工實際數字[],MATCH(INDEX(員工差異[],ROW()-ROW(員工差異[[#Headers],[11 月]]),1),INDEX(員工計劃[],,1),0),MATCH(員工差異[[#Headers],[11 月]],員工實際數字[#Headers],0)) -> NT$24,948.00 | N7: =INDEX(員工計劃[],MATCH(INDEX(員工差異[],ROW()-ROW(員工差異[[#Headers],[12 月]]),1),INDEX(員工計劃[],,1),0),MATCH(員工差異[[#Headers],[12 月]],員工計劃[#Headers],0))-INDEX(員工實際數字[],MATCH(INDEX(員工差異[],ROW()-ROW(員工差異[[#Headers],[12 月]]),1),INDEX(員工計劃[],,1),0),MATCH(員工差異[[#Headers],[12 月]],員工實際數字[#Headers],0)) -> NT$24,948.00 | O7: =SUM(員工差異[[#This Row],[1 月]:[12 月]]) -> NT$147,960.00
B8: 小計 | C8: =SUBTOTAL(109,員工差異[1 月]) -> NT$0.00 | D8: =SUBTOTAL(109,員工差異[2 月]) -> NT$0.00 | E8: =SUBTOTAL(109,員工差異[3 月]) -> NT$0.00 | F8: =SUBTOTAL(109,員工差異[4 月]) -> (NT$635.00) | G8: =SUBTOTAL(109,員工差異[5 月]) -> (NT$635.00) | H8: =SUBTOTAL(109,員工差異[6 月]) -> (NT$635.00) | I8: =SUBTOTAL(109,員工差異[7 月]) -> NT$111,125.00 | J8: =SUBTOTAL(109,員工差異[8 月]) -> NT$117,348.00 | K8: =SUBTOTAL(109,員工差異[9 月]) -> NT$117,348.00 | L8: =SUBTOTAL(109,員工差異[10 月]) -> NT$117,348.00 | M8: =SUBTOTAL(109,員工差異[11 月]) -> NT$117,348.00 | N8: =SUBTOTAL(109,員工差異[12 月]) -> NT$117,348.00 | O8: =SUBTOTAL(109,員工差異[年度]) -> NT$695,960.00
B10: 辦公室成本 | C10: 1 月 | D10: 2 月 | E10: 3 月 | F10: 4 月 | G10: 5 月 | H10: 6 月 | I10: 7 月 | J10: 8 月 | K10: 9 月 | L10: 10 月 | M10: 11 月 | N10: 12 月 | O10: 年度
B11: 辦公室租金 | C11: =INDEX(辦公室計劃[],MATCH(INDEX(辦公室差異[],ROW()-ROW(辦公室差異[[#Headers],[1 月]]),1),INDEX(辦公室計劃[],,1),0),MATCH(辦公室差異[[#Headers],[1 月]],辦公室計劃[#Headers],0))-INDEX(辦公室實際數字[],MATCH(INDEX(辦公室差異[],ROW()-ROW(辦公室差異[[#Headers],[1 月]]),1),INDEX(辦公室計劃[],,1),0),MATCH(辦公室差異[[#Headers],[1 月]],辦公室實際數字[#Headers],0)) -> NT$0.00 | D11: =INDEX(辦公室計劃[],MATCH(INDEX(辦公室差異[],ROW()-ROW(辦公室差異[[#Headers],[2 月]]),1),INDEX(辦公室計劃[],,1),0),MATCH(辦公室差異[[#Headers],[2 月]],辦公室計劃[#Headers],0))-INDEX(辦公室實際數字[],MATCH(INDEX(辦公室差異[],ROW()-ROW(辦公室差異[[#Headers],[2 月]]),1),INDEX(辦公室計劃[],,1),0),MATCH(辦公室差異[[#Headers],[2 月]],辦公室實際數字[#Headers],0)) -> NT$0.00 | E11: =INDEX(辦公室計劃[],MATCH(INDEX(辦公室差異[],ROW()-ROW(辦公室差異[[#Headers],[3 月]]),1),INDEX(辦公室計劃[],,1),0),MATCH(辦公室差異[[#Headers],[3 月]],辦公室計劃[#Headers],0))-INDEX(辦公室實際數字[],MATCH(INDEX(辦公室差異[],ROW()-ROW(辦公室差異[[#Headers],[3 月]]),1),INDEX(辦公室計劃[],,1),0),MATCH(辦公室差異[[#Headers],[3 月]],辦公室實際數字[#Headers],0)) -> NT$0.00 | F11: =INDEX(辦公室計劃[],MATCH(INDEX(辦公室差異[],ROW()-ROW(辦公室差異[[#Headers],[4 月]]),1),INDEX(辦公室計劃[],,1),0),MATCH(辦公室差異[[#Headers],[4 月]],辦公室計劃[#Headers],0))-INDEX(辦公室實際數字[],MATCH(INDEX(辦公室差異[],ROW()-ROW(辦公室差異[[#Headers],[4 月]]),1),INDEX(辦公室計劃[],,1),0),MATCH(辦公室差異[[#Headers],[4 月]],辦公室實際數字[#Headers],0)) -> NT$0.00 | G11: =INDEX(辦公室計劃[],MATCH(INDEX(辦公室差異[],ROW()-ROW(辦公室差異[[#Headers],[5 月]]),1),INDEX(辦公室計劃[],,1),0),MATCH(辦公室差異[[#Headers],[5 月]],辦公室計劃[#Headers],0))-INDEX(辦公室實際數字[],MATCH(INDEX(辦公室差異[],ROW()-ROW(辦公室差異[[#Headers],[5 月]]),1),INDEX(辦公室計劃[],,1),0),MATCH(辦公室差異[[#Headers],[5 月]],辦公室實際數字[#Headers],0)) -> NT$0.00 | H11: =INDEX(辦公室計劃[],MATCH(INDEX(辦公室差異[],ROW()-ROW(辦公室差異[[#Headers],[6 月]]),1),INDEX(辦公室計劃[],,1),0),MATCH(辦公室差異[[#Headers],[6 月]],辦公室計劃[#Headers],0))-INDEX(辦公室實際數字[],MATCH(INDEX(辦公室差異[],ROW()-ROW(辦公室差異[[#Headers],[6 月]]),1),INDEX(辦公室計劃[],,1),0),MATCH(辦公室差異[[#Headers],[6 月]],辦公室實際數字[#Headers],0)) -> NT$0.00 | I11: =INDEX(辦公室計劃[],MATCH(INDEX(辦公室差異[],ROW()-ROW(辦公室差異[[#Headers],[7 月]]),1),INDEX(辦公室計劃[],,1),0),MATCH(辦公室差異[[#Headers],[7 月]],辦公室計劃[#Headers],0))-INDEX(辦公室實際數字[],MATCH(INDEX(辦公室差異[],ROW()-ROW(辦公室差異[[#Headers],[7 月]]),1),INDEX(辦公室計劃[],,1),0),MATCH(辦公室差異[[#Headers],[7 月]],辦公室實際數字[#Headers],0)) -> NT$9,800.00 | J11: =INDEX(辦公室計劃[],MATCH(INDEX(辦公室差異[],ROW()-ROW(辦公室差異[[#Headers],[8 月]]),1),INDEX(辦公室計劃[],,1),0),MATCH(辦公室差異[[#Headers],[8 月]],辦公室計劃[#Headers],0))-INDEX(辦公室實際數字[],MATCH(INDEX(辦公室差異[],ROW()-ROW(辦公室差異[[#Headers],[8 月]]),1),INDEX(辦公室計劃[],,1),0),MATCH(辦公室差異[[#Headers],[8 月]],辦公室實際數字[#Headers],0)) -> NT$9,800.00 | K11: =INDEX(辦公室計劃[],MATCH(INDEX(辦公室差異[],ROW()-ROW(辦公室差異[[#Headers],[9 月]]),1),INDEX(辦公室計劃[],,1),0),MATCH(辦公室差異[[#Headers],[9 月]],辦公室計劃[#Headers],0))-INDEX(辦公室實際數字[],MATCH(INDEX(辦公室差異[],ROW()-ROW(辦公室差異[[#Headers],[9 月]]),1),INDEX(辦公室計劃[],,1),0),MATCH(辦公室差異[[#Headers],[9 月]],辦公室實際數字[#Headers],0)) -> NT$9,800.00 | L11: =INDEX(辦公室計劃[],MATCH(INDEX(辦公室差異[],ROW()-ROW(辦公室差異[[#Headers],[10 月]]),1),INDEX(辦公室計劃[],,1),0),MATCH(辦公室差異[[#Headers],[10 月]],辦公室計劃[#Headers],0))-INDEX(辦公室實際數字[],MATCH(INDEX(辦公室差異[],ROW()-ROW(辦公室差異[[#Headers],[10 月]]),1),INDEX(辦公室計劃[],,1),0),MATCH(辦公室差異[[#Headers],[10 月]],辦公室實際數字[#Headers],0)) -> NT$9,800.00 | M11: =INDEX(辦公室計劃[],MATCH(INDEX(辦公室差異[],ROW()-ROW(辦公室差異[[#Headers],[11 月]]),1),INDEX(辦公室計劃[],,1),0),MATCH(辦公室差異[[#Headers],[11 月]],辦公室計劃[#Headers],0))-INDEX(辦公室實際數字[],MATCH(INDEX(辦公室差異[],ROW()-ROW(辦公室差異[[#Headers],[11 月]]),1),INDEX(辦公室計劃[],,1),0),MATCH(辦公室差異[[#Headers],[11 月]],辦公室實際數字[#Headers],0)) -> NT$9,800.00 | N11: =INDEX(辦公室計劃[],MATCH(INDEX(辦公室差異[],ROW()-ROW(辦公室差異[[#Headers],[12 月]]),1),INDEX(辦公室計劃[],,1),0),MATCH(辦公室差異[[#Headers],[12 月]],辦公室計劃[#Headers],0))-INDEX(辦公室實際數字[],MATCH(INDEX(辦公室差異[],ROW()-ROW(辦公室差異[[#Headers],[12 月]]),1),INDEX(辦公室計劃[],,1),0),MATCH(辦公室差異[[#Headers],[12 月]],辦公室實際數字[#Headers],0)) -> NT$9,800.00 | O11: =SUM(辦公室差異[[#This Row],[1 月]:[12 月]]) -> NT$58,800.00
B12: 瓦斯費 | C12: =INDEX(辦公室計劃[],MATCH(INDEX(辦公室差異[],ROW()-ROW(辦公室差異[[#Headers],[1 月]]),1),INDEX(辦公室計劃[],,1),0),MATCH(辦公室差異[[#Headers],[1 月]],辦公室計劃[#Headers],0))-INDEX(辦公室實際數字[],MATCH(INDEX(辦公室差異[],ROW()-ROW(辦公室差異[[#Headers],[1 月]]),1),INDEX(辦公室計劃[],,1),0),MATCH(辦公室差異[[#Headers],[1 月]],辦公室實際數字[#Headers],0)) -> (NT$4.00) | D12: =INDEX(辦公室計劃[],MATCH(INDEX(辦公室差異[],ROW()-ROW(辦公室差異[[#Headers],[2 月]]),1),INDEX(辦公室計劃[],,1),0),MATCH(辦公室差異[[#Headers],[2 月]],辦公室計劃[#Headers],0))-INDEX(辦公室實際數字[],MATCH(INDEX(辦公室差異[],ROW()-ROW(辦公室差異[[#Headers],[2 月]]),1),INDEX(辦公室計劃[],,1),0),MATCH(辦公室差異[[#Headers],[2 月]],辦公室實際數字[#Headers],0)) -> (NT$30.00) | E12: =INDEX(辦公室計劃[],MATCH(INDEX(辦公室差異[],ROW()-ROW(辦公室差異[[#Headers],[3 月]]),1),INDEX(辦公室計劃[],,1),0),MATCH(辦公室差異[[#Headers],[3 月]],辦公室計劃[#Headers],0))-INDEX(辦公室實際數字[],MATCH(INDEX(辦公室差異[],ROW()-ROW(辦公室差異[[#Headers],[3 月]]),1),INDEX(辦公室計劃[],,1),0),MATCH(辦公室差異[[#Headers],[3 月]],辦公室實際數字[#Headers],0)) -> NT$15.00 | F12: =INDEX(辦公室計劃[],MATCH(INDEX(辦公室差異[],ROW()-ROW(辦公室差異[[#Headers],[4 月]]),1),INDEX(辦公室計劃[],,1),0),MATCH(辦公室差異[[#Headers],[4 月]],辦公室計劃[#Headers],0))-INDEX(辦公室實際數字[],MATCH(INDEX(辦公室差異[],ROW()-ROW(辦公室差異[[#Headers],[4 月]]),1),INDEX(辦公室計劃[],,1),0),MATCH(辦公室差異[[#Headers],[4 月]],辦公室實際數字[#Headers],0)) -> (NT$130.00) | G12: =INDEX(辦公室計劃[],MATCH(INDEX(辦公室差異[],ROW()-ROW(辦公室差異[[#Headers],[5 月]]),1),INDEX(辦公室計劃[],,1),0),MATCH(辦公室差異[[#Headers],[5 月]],辦公室計劃[#Headers],0))-INDEX(辦公室實際數字[],MATCH(INDEX(辦公室差異[],ROW()-ROW(辦公室差異[[#Headers],[5 月]]),1),INDEX(辦公室計劃[],,1),0),MATCH(辦公室差異[[#Headers],[5 月]],辦公室實際數字[#Headers],0)) -> NT$13.00 | H12: =INDEX(辦公室計劃[],MATCH(INDEX(辦公室差異[],ROW()-ROW(辦公室差異[[#Headers],[6 月]]),1),INDEX(辦公室計劃[],,1),0),MATCH(辦公室差異[[#Headers],[6 月]],辦公室計劃[#Headers],0))-INDEX(辦公室實際數字[],MATCH(INDEX(辦公室差異[],ROW()-ROW(辦公室差異[[#Headers],[6 月]]),1),INDEX(辦公室計劃[],,1),0),MATCH(辦公室差異[[#Headers],[6 月]],辦公室實際數字[#Headers],0)) -> NT$12.00 | I12: =INDEX(辦公室計劃[],MATCH(INDEX(辦公室差異[],ROW()-ROW(辦公室差異[[#Headers],[7 月]]),1),INDEX(辦公室計劃[],,1),0),MATCH(辦公室差異[[#Headers],[7 月]],辦公室計劃[#Headers],0))-INDEX(辦公室實際數字[],MATCH(INDEX(辦公室差異[],ROW()-ROW(辦公室差異[[#Headers],[7 月]]),1),INDEX(辦公室計劃[],,1),0),MATCH(辦公室差異[[#Headers],[7 月]],辦公室實際數字[#Headers],0)) -> NT$100.00 | J12: =INDEX(辦公室計劃[],MATCH(INDEX(辦公室差異[],ROW()-ROW(辦公室差異[[#Headers],[8 月]]),1),INDEX(辦公室計劃[],,1),0),MATCH(辦公室差異[[#Headers],[8 月]],辦公室計劃[#Headers],0))-INDEX(辦公室實際數字[],MATCH(INDEX(辦公室差異[],ROW()-ROW(辦公室差異[[#Headers],[8 月]]),1),INDEX(辦公室計劃[],,1),0),MATCH(辦公室差異[[#Headers],[8 月]],辦公室實際數字[#Headers],0)) -> NT$100.00 | K12: =INDEX(辦公室計劃[],MATCH(INDEX(辦公室差異[],ROW()-ROW(辦公室差異[[#Headers],[9 月]]),1),INDEX(辦公室計劃[],,1),0),MATCH(辦公室差異[[#Headers],[9 月]],辦公室計劃[#Headers],0))-INDEX(辦公室實際數字[],MATCH(INDEX(辦公室差異[],ROW()-ROW(辦公室差異[[#Headers],[9 月]]),1),INDEX(辦公室計劃[],,1),0),MATCH(辦公室差異[[#Headers],[9 月]],辦公室實際數字[#Headers],0)) -> NT$100.00 | L12: =INDEX(辦公室計劃[],MATCH(INDEX(辦公室差異[],ROW()-ROW(辦公室差異[[#Headers],[10 月]]),1),INDEX(辦公室計劃[],,1),0),MATCH(辦公室差異[[#Headers],[10 月]],辦公室計劃[#Headers],0))-INDEX(辦公室實際數字[],MATCH(INDEX(辦公室差異[],ROW()-ROW(辦公室差異[[#Headers],[10 月]]),1),INDEX(辦公室計劃[],,1),0),MATCH(辦公室差異[[#Headers],[10 月]],辦公室實際數字[#Headers],0)) -> NT$100.00 | M12: =INDEX(辦公室計劃[],MATCH(INDEX(辦公室差異[],ROW()-ROW(辦公室差異[[#Headers],[11 月]]),1),INDEX(辦公室計劃[],,1),0),MATCH(辦公室差異[[#Headers],[11 月]],辦公室計劃[#Headers],0))-INDEX(辦公室實際數字[],MATCH(INDEX(辦公室差異[],ROW()-ROW(辦公室差異[[#Headers],[11 月]]),1),INDEX(辦公室計劃[],,1),0),MATCH(辦公室差異[[#Headers],[11 月]],辦公室實際數字[#Headers],0)) -> NT$400.00 | N12: =INDEX(辦公室計劃[],MATCH(INDEX(辦公室差異[],ROW()-ROW(辦公室差異[[#Headers],[12 月]]),1),INDEX(辦公室計劃[],,1),0),MATCH(辦公室差異[[#Headers],[12 月]],辦公室計劃[#Headers],0))-INDEX(辦公室實際數字[],MATCH(INDEX(辦公室差異[],ROW()-ROW(辦公室差異[[#Headers],[12 月]]),1),INDEX(辦公室計劃[],,1),0),MATCH(辦公室差異[[#Headers],[12 月]],辦公室實際數字[#Headers],0)) -> NT$400.00 | O12: =SUM(辦公室差異[[#This Row],[1 月]:[12 月]]) -> NT$1,076.00
B13: 電費 | C13: =INDEX(辦公室計劃[],MATCH(INDEX(辦公室差異[],ROW()-ROW(辦公室差異[[#Headers],[1 月]]),1),INDEX(辦公室計劃[],,1),0),MATCH(辦公室差異[[#Headers],[1 月]],辦公室計劃[#Headers],0))-INDEX(辦公室實際數字[],MATCH(INDEX(辦公室差異[],ROW()-ROW(辦公室差異[[#Headers],[1 月]]),1),INDEX(辦公室計劃[],,1),0),MATCH(辦公室差異[[#Headers],[1 月]],辦公室實際數字[#Headers],0)) -> NT$12.00 | D13: =INDEX(辦公室計劃[],MATCH(INDEX(辦公室差異[],ROW()-ROW(辦公室差異[[#Headers],[2 月]]),1),INDEX(辦公室計劃[],,1),0),MATCH(辦公室差異[[#Headers],[2 月]],辦公室計劃[#Headers],0))-INDEX(辦公室實際數字[],MATCH(INDEX(辦公室差異[],ROW()-ROW(辦公室差異[[#Headers],[2 月]]),1),INDEX(辦公室計劃[],,1),0),MATCH(辦公室差異[[#Headers],[2 月]],辦公室實際數字[#Headers],0)) -> NT$22.00 | E13: =INDEX(辦公室計劃[],MATCH(INDEX(辦公室差異[],ROW()-ROW(辦公室差異[[#Headers],[3 月]]),1),INDEX(辦公室計劃[],,1),0),MATCH(辦公室差異[[#Headers],[3 月]],辦公室計劃[#Headers],0))-INDEX(辦公室實際數字[],MATCH(INDEX(辦公室差異[],ROW()-ROW(辦公室差異[[#Headers],[3 月]]),1),INDEX(辦公室計劃[],,1),0),MATCH(辦公室差異[[#Headers],[3 月]],辦公室實際數字[#Headers],0)) -> NT$32.00 | F13: =INDEX(辦公室計劃[],MATCH(INDEX(辦公室差異[],ROW()-ROW(辦公室差異[[#Headers],[4 月]]),1),INDEX(辦公室計劃[],,1),0),MATCH(辦公室差異[[#Headers],[4 月]],辦公室計劃[#Headers],0))-INDEX(辦公室實際數字[],MATCH(INDEX(辦公室差異[],ROW()-ROW(辦公室差異[[#Headers],[4 月]]),1),INDEX(辦公室計劃[],,1),0),MATCH(辦公室差異[[#Headers],[4 月]],辦公室實際數字[#Headers],0)) -> NT$1.00 | G13: =INDEX(辦公室計劃[],MATCH(INDEX(辦公室差異[],ROW()-ROW(辦公室差異[[#Headers],[5 月]]),1),INDEX(辦公室計劃[],,1),0),MATCH(辦公室差異[[#Headers],[5 月]],辦公室計劃[#Headers],0))-INDEX(辦公室實際數字[],MATCH(INDEX(辦公室差異[],ROW()-ROW(辦公室差異[[#Headers],[5 月]]),1),INDEX(辦公室計劃[],,1),0),MATCH(辦公室差異[[#Headers],[5 月]],辦公室實際數字[#Headers],0)) -> (NT$6.00) | H13: =INDEX(辦公室計劃[],MATCH(INDEX(辦公室差異[],ROW()-ROW(辦公室差異[[#Headers],[6 月]]),1),INDEX(辦公室計劃[],,1),0),MATCH(辦公室差異[[#Headers],[6 月]],辦公室計劃[#Headers],0))-INDEX(辦公室實際數字[],MATCH(INDEX(辦公室差異[],ROW()-ROW(辦公室差異[[#Headers],[6 月]]),1),INDEX(辦公室計劃[],,1),0),MATCH(辦公室差異[[#Headers],[6 月]],辦公室實際數字[#Headers],0)) -> NT$10.00 | I13: =INDEX(辦公室計劃[],MATCH(INDEX(辦公室差異[],ROW()-ROW(辦公室差異[[#Headers],[7 月]]),1),INDEX(辦公室計劃[],,1),0),MATCH(辦公室差異[[#Headers],[7 月]],辦公室計劃[#Headers],0))-INDEX(辦公室實際數字[],MATCH(INDEX(辦公室差異[],ROW()-ROW(辦公室差異[[#Headers],[7 月]]),1),INDEX(辦公室計劃[],,1),0),MATCH(辦公室差異[[#Headers],[7 月]],辦公室實際數字[#Headers],0)) -> NT$300.00 | J13: =INDEX(辦公室計劃[],MATCH(INDEX(辦公室差異[],ROW()-ROW(辦公室差異[[#Headers],[8 月]]),1),INDEX(辦公室計劃[],,1),0),MATCH(辦公室差異[[#Headers],[8 月]],辦公室計劃[#Headers],0))-INDEX(辦公室實際數字[],MATCH(INDEX(辦公室差異[],ROW()-ROW(辦公室差異[[#Headers],[8 月]]),1),INDEX(辦公室計劃[],,1),0),MATCH(辦公室差異[[#Headers],[8 月]],辦公室實際數字[#Headers],0)) -> NT$300.00 | K13: =INDEX(辦公室計劃[],MATCH(INDEX(辦公室差異[],ROW()-ROW(辦公室差異[[#Headers],[9 月]]),1),INDEX(辦公室計劃[],,1),0),MATCH(辦公室差異[[#Headers],[9 月]],辦公室計劃[#Headers],0))-INDEX(辦公室實際數字[],MATCH(INDEX(辦公室差異[],ROW()-ROW(辦公室差異[[#Headers],[9 月]]),1),INDEX(辦公室計劃[],,1),0),MATCH(辦公室差異[[#Headers],[9 月]],辦公室實際數字[#Headers],0)) -> NT$300.00 | L13: =INDEX(辦公室計劃[],MATCH(INDEX(辦公室差異[],ROW()-ROW(辦公室差異[[#Headers],[10 月]]),1),INDEX(辦公室計劃[],,1),0),MATCH(辦公室差異[[#Headers],[10 月]],辦公室計劃[#Headers],0))-INDEX(辦公室實際數字[],MATCH(INDEX(辦公室差異[],ROW()-ROW(辦公室差異[[#Headers],[10 月]]),1),INDEX(辦公室計劃[],,1),0),MATCH(辦公室差異[[#Headers],[10 月]],辦公室實際數字[#Headers],0)) -> NT$300.00 | M13: =INDEX(辦公室計劃[],MATCH(INDEX(辦公室差異[],ROW()-ROW(辦公室差異[[#Headers],[11 月]]),1),INDEX(辦公室計劃[],,1),0),MATCH(辦公室差異[[#Headers],[11 月]],辦公室計劃[#Headers],0))-INDEX(辦公室實際數字[],MATCH(INDEX(辦公室差異[],ROW()-ROW(辦公室差異[[#Headers],[11 月]]),1),INDEX(辦公室計劃[],,1),0),MATCH(辦公室差異[[#Headers],[11 月]],辦公室實際數字[#Headers],0)) -> NT$300.00 | N13: =INDEX(辦公室計劃[],MATCH(INDEX(辦公室差異[],ROW()-ROW(辦公室差異[[#Headers],[12 月]]),1),INDEX(辦公室計劃[],,1),0),MATCH(辦公室差異[[#Headers],[12 月]],辦公室計劃[#Headers],0))-INDEX(辦公室實際數字[],MATCH(INDEX(辦公室差異[],ROW()-ROW(辦公室差異[[#Headers],[12 月]]),1),INDEX(辦公室計劃[],,1),0),MATCH(辦公室差異[[#Headers],[12 月]],辦公室實際數字[#Headers],0)) -> NT$300.00 | O13: =SUM(辦公室差異[[#This Row],[1 月]:[12 月]]) -> NT$1,871.00
B14: 水費 | C14: =INDEX(辦公室計劃[],MATCH(INDEX(辦公室差異[],ROW()-ROW(辦公室差異[[#Headers],[1 月]]),1),INDEX(辦公室計劃[],,1),0),MATCH(辦公室差異[[#Headers],[1 月]],辦公室計劃[#Headers],0))-INDEX(辦公室實際數字[],MATCH(INDEX(辦公室差異[],ROW()-ROW(辦公室差異[[#Headers],[1 月]]),1),INDEX(辦公室計劃[],,1),0),MATCH(辦公室差異[[#Headers],[1 月]],辦公室實際數字[#Headers],0)) -> NT$5.00 | D14: =INDEX(辦公室計劃[],MATCH(INDEX(辦公室差異[],ROW()-ROW(辦公室差異[[#Headers],[2 月]]),1),INDEX(辦公室計劃[],,1),0),MATCH(辦公室差異[[#Headers],[2 月]],辦公室計劃[#Headers],0))-INDEX(辦公室實際數字[],MATCH(INDEX(辦公室差異[],ROW()-ROW(辦公室差異[[#Headers],[2 月]]),1),INDEX(辦公室計劃[],,1),0),MATCH(辦公室差異[[#Headers],[2 月]],辦公室實際數字[#Headers],0)) -> NT$7.00 | E14: =INDEX(辦公室計劃[],MATCH(INDEX(辦公室差異[],ROW()-ROW(辦公室差異[[#Headers],[3 月]]),1),INDEX(辦公室計劃[],,1),0),MATCH(辦公室差異[[#Headers],[3 月]],辦公室計劃[#Headers],0))-INDEX(辦公室實際數字[],MATCH(INDEX(辦公室差異[],ROW()-ROW(辦公室差異[[#Headers],[3 月]]),1),INDEX(辦公室計劃[],,1),0),MATCH(辦公室差異[[#Headers],[3 月]],辦公室實際數字[#Headers],0)) -> NT$6.00 | F14: =INDEX(辦公室計劃[],MATCH(INDEX(辦公室差異[],ROW()-ROW(辦公室差異[[#Headers],[4 月]]),1),INDEX(辦公室計劃[],,1),0),MATCH(辦公室差異[[#Headers],[4 月]],辦公室計劃[#Headers],0))-INDEX(辦公室實際數字[],MATCH(INDEX(辦公室差異[],ROW()-ROW(辦公室差異[[#Headers],[4 月]]),1),INDEX(辦公室計劃[],,1),0),MATCH(辦公室差異[[#Headers],[4 月]],辦公室實際數字[#Headers],0)) -> NT$4.00 | G14: =INDEX(辦公室計劃[],MATCH(INDEX(辦公室差異[],ROW()-ROW(辦公室差異[[#Headers],[5 月]]),1),INDEX(辦公室計劃[],,1),0),MATCH(辦公室差異[[#Headers],[5 月]],辦公室計劃[#Headers],0))-INDEX(辦公室實際數字[],MATCH(INDEX(辦公室差異[],ROW()-ROW(辦公室差異[[#Headers],[5 月]]),1),INDEX(辦公室計劃[],,1),0),MATCH(辦公室差異[[#Headers],[5 月]],辦公室實際數字[#Headers],0)) -> NT$6.00 | H14: =INDEX(辦公室計劃[],MATCH(INDEX(辦公室差異[],ROW()-ROW(辦公室差異[[#Headers],[6 月]]),1),INDEX(辦公室計劃[],,1),0),MATCH(辦公室差異[[#Headers],[6 月]],辦公室計劃[#Headers],0))-INDEX(辦公室實際數字[],MATCH(INDEX(辦公室差異[],ROW()-ROW(辦公室差異[[#Headers],[6 月]]),1),INDEX(辦公室計劃[],,1),0),MATCH(辦公室差異[[#Headers],[6 月]],辦公室實際數字[#Headers],0)) -> NT$4.00 | I14: =INDEX(辦公室計劃[],MATCH(INDEX(辦公室差異[],ROW()-ROW(辦公室差異[[#Headers],[7 月]]),1),INDEX(辦公室計劃[],,1),0),MATCH(辦公室差異[[#Headers],[7 月]],辦公室計劃[#Headers],0))-INDEX(辦公室實際數字[],MATCH(INDEX(辦公室差異[],ROW()-ROW(辦公室差異[[#Headers],[7 月]]),1),INDEX(辦公室計劃[],,1),0),MATCH(辦公室差異[[#Headers],[7 月]],辦公室實際數字[#Headers],0)) -> NT$40.00 | J14: =INDEX(辦公室計劃[],MATCH(INDEX(辦公室差異[],ROW()-ROW(辦公室差異[[#Headers],[8 月]]),1),INDEX(辦公室計劃[],,1),0),MATCH(辦公室差異[[#Headers],[8 月]],辦公室計劃[#Headers],0))-INDEX(辦公室實際數字[],MATCH(INDEX(辦公室差異[],ROW()-ROW(辦公室差異[[#Headers],[8 月]]),1),INDEX(辦公室計劃[],,1),0),MATCH(辦公室差異[[#Headers],[8 月]],辦公室實際數字[#Headers],0)) -> NT$40.00 | K14: =INDEX(辦公室計劃[],MATCH(INDEX(辦公室差異[],ROW()-ROW(辦公室差異[[#Headers],[9 月]]),1),INDEX(辦公室計劃[],,1),0),MATCH(辦公室差異[[#Headers],[9 月]],辦公室計劃[#Headers],0))-INDEX(辦公室實際數字[],MATCH(INDEX(辦公室差異[],ROW()-ROW(辦公室差異[[#Headers],[9 月]]),1),INDEX(辦公室計劃[],,1),0),MATCH(辦公室差異[[#Headers],[9 月]],辦公室實際數字[#Headers],0)) -> NT$40.00 | L14: =INDEX(辦公室計劃[],MATCH(INDEX(辦公室差異[],ROW()-ROW(辦公室差異[[#Headers],[10 月]]),1),INDEX(辦公室計劃[],,1),0),MATCH(辦公室差異[[#Headers],[10 月]],辦公室計劃[#Headers],0))-INDEX(辦公室實際數字[],MATCH(INDEX(辦公室差異[],ROW()-ROW(辦公室差異[[#Headers],[10 月]]),1),INDEX(辦公室計劃[],,1),0),MATCH(辦公室差異[[#Headers],[10 月]],辦公室實際數字[#Headers],0)) -> NT$40.00 | M14: =INDEX(辦公室計劃[],MATCH(INDEX(辦公室差異[],ROW()-ROW(辦公室差異[[#Headers],[11 月]]),1),INDEX(辦公室計劃[],,1),0),MATCH(辦公室差異[[#Headers],[11 月]],辦公室計劃[#Headers],0))-INDEX(辦公室實際數字[],MATCH(INDEX(辦公室差異[],ROW()-ROW(辦公室差異[[#Headers],[11 月]]),1),INDEX(辦公室計劃[],,1),0),MATCH(辦公室差異[[#Headers],[11 月]],辦公室實際數字[#Headers],0)) -> NT$40.00 | N14: =INDEX(辦公室計劃[],MATCH(INDEX(辦公室差異[],ROW()-ROW(辦公室差異[[#Headers],[12 月]]),1),INDEX(辦公室計劃[],,1),0),MATCH(辦公室差異[[#Headers],[12 月]],辦公室計劃[#Headers],0))-INDEX(辦公室實際數字[],MATCH(INDEX(辦公室差異[],ROW()-ROW(辦公室差異[[#Headers],[12 月]]),1),INDEX(辦公室計劃[],,1),0),MATCH(辦公室差異[[#Headers],[12 月]],辦公室實際數字[#Headers],0)) -> NT$40.00 | O14: =SUM(辦公室差異[[#This Row],[1 月]:[12 月]]) -> NT$272.00
B15: 電話費 | C15: =INDEX(辦公室計劃[],MATCH(INDEX(辦公室差異[],ROW()-ROW(辦公室差異[[#Headers],[1 月]]),1),INDEX(辦公室計劃[],,1),0),MATCH(辦公室差異[[#Headers],[1 月]],辦公室計劃[#Headers],0))-INDEX(辦公室實際數字[],MATCH(INDEX(辦公室差異[],ROW()-ROW(辦公室差異[[#Headers],[1 月]]),1),INDEX(辦公室計劃[],,1),0),MATCH(辦公室差異[[#Headers],[1 月]],辦公室實際數字[#Headers],0)) -> NT$26.00 | D15: =INDEX(辦公室計劃[],MATCH(INDEX(辦公室差異[],ROW()-ROW(辦公室差異[[#Headers],[2 月]]),1),INDEX(辦公室計劃[],,1),0),MATCH(辦公室差異[[#Headers],[2 月]],辦公室計劃[#Headers],0))-INDEX(辦公室實際數字[],MATCH(INDEX(辦公室差異[],ROW()-ROW(辦公室差異[[#Headers],[2 月]]),1),INDEX(辦公室計劃[],,1),0),MATCH(辦公室差異[[#Headers],[2 月]],辦公室實際數字[#Headers],0)) -> NT$15.00 | E15: =INDEX(辦公室計劃[],MATCH(INDEX(辦公室差異[],ROW()-ROW(辦公室差異[[#Headers],[3 月]]),1),INDEX(辦公室計劃[],,1),0),MATCH(辦公室差異[[#Headers],[3 月]],辦公室計劃[#Headers],0))-INDEX(辦公室實際數字[],MATCH(INDEX(辦公室差異[],ROW()-ROW(辦公室差異[[#Headers],[3 月]]),1),INDEX(辦公室計劃[],,1),0),MATCH(辦公室差異[[#Headers],[3 月]],辦公室實際數字[#Headers],0)) -> (NT$15.00) | F15: =INDEX(辦公室計劃[],MATCH(INDEX(辦公室差異[],ROW()-ROW(辦公室差異[[#Headers],[4 月]]),1),INDEX(辦公室計劃[],,1),0),MATCH(辦公室差異[[#Headers],[4 月]],辦公室計劃[#Headers],0))-INDEX(辦公室實際數字[],MATCH(INDEX(辦公室差異[],ROW()-ROW(辦公室差異[[#Headers],[4 月]]),1),INDEX(辦公室計劃[],,1),0),MATCH(辦公室差異[[#Headers],[4 月]],辦公室實際數字[#Headers],0)) -> NT$5.00 | G15: =INDEX(辦公室計劃[],MATCH(INDEX(辦公室差異[],ROW()-ROW(辦公室差異[[#Headers],[5 月]]),1),INDEX(辦公室計劃[],,1),0),MATCH(辦公室差異[[#Headers],[5 月]],辦公室計劃[#Headers],0))-INDEX(辦公室實際數字[],MATCH(INDEX(辦公室差異[],ROW()-ROW(辦公室差異[[#Headers],[5 月]]),1),INDEX(辦公室計劃[],,1),0),MATCH(辦公室差異[[#Headers],[5 月]],辦公室實際數字[#Headers],0)) -> NT$5.00 | H15: =INDEX(辦公室計劃[],MATCH(INDEX(辦公室差異[],ROW()-ROW(辦公室差異[[#Headers],[6 月]]),1),INDEX(辦公室計劃[],,1),0),MATCH(辦公室差異[[#Headers],[6 月]],辦公室計劃[#Headers],0))-INDEX(辦公室實際數字[],MATCH(INDEX(辦公室差異[],ROW()-ROW(辦公室差異[[#Headers],[6 月]]),1),INDEX(辦公室計劃[],,1),0),MATCH(辦公室差異[[#Headers],[6 月]],辦公室實際數字[#Headers],0)) -> NT$30.00 | I15: =INDEX(辦公室計劃[],MATCH(INDEX(辦公室差異[],ROW()-ROW(辦公室差異[[#Headers],[7 月]]),1),INDEX(辦公室計劃[],,1),0),MATCH(辦公室差異[[#Headers],[7 月]],辦公室計劃[#Headers],0))-INDEX(辦公室實際數字[],MATCH(INDEX(辦公室差異[],ROW()-ROW(辦公室差異[[#Headers],[7 月]]),1),INDEX(辦公室計劃[],,1),0),MATCH(辦公室差異[[#Headers],[7 月]],辦公室實際數字[#Headers],0)) -> NT$250.00 | J15: =INDEX(辦公室計劃[],MATCH(INDEX(辦公室差異[],ROW()-ROW(辦公室差異[[#Headers],[8 月]]),1),INDEX(辦公室計劃[],,1),0),MATCH(辦公室差異[[#Headers],[8 月]],辦公室計劃[#Headers],0))-INDEX(辦公室實際數字[],MATCH(INDEX(辦公室差異[],ROW()-ROW(辦公室差異[[#Headers],[8 月]]),1),INDEX(辦公室計劃[],,1),0),MATCH(辦公室差異[[#Headers],[8 月]],辦公室實際數字[#Headers],0)) -> NT$250.00 | K15: =INDEX(辦公室計劃[],MATCH(INDEX(辦公室差異[],ROW()-ROW(辦公室差異[[#Headers],[9 月]]),1),INDEX(辦公室計劃[],,1),0),MATCH(辦公室差異[[#Headers],[9 月]],辦公室計劃[#Headers],0))-INDEX(辦公室實際數字[],MATCH(INDEX(辦公室差異[],ROW()-ROW(辦公室差異[[#Headers],[9 月]]),1),INDEX(辦公室計劃[],,1),0),MATCH(辦公室差異[[#Headers],[9 月]],辦公室實際數字[#Headers],0)) -> NT$250.00 | L15: =INDEX(辦公室計劃[],MATCH(INDEX(辦公室差異[],ROW()-ROW(辦公室差異[[#Headers],[10 月]]),1),INDEX(辦公室計劃[],,1),0),MATCH(辦公室差異[[#Headers],[10 月]],辦公室計劃[#Headers],0))-INDEX(辦公室實際數字[],MATCH(INDEX(辦公室差異[],ROW()-ROW(辦公室差異[[#Headers],[10 月]]),1),INDEX(辦公室計劃[],,1),0),MATCH(辦公室差異[[#Headers],[10 月]],辦公室實際數字[#Headers],0)) -> NT$250.00 | M15: =INDEX(辦公室計劃[],MATCH(INDEX(辦公室差異[],ROW()-ROW(辦公室差異[[#Headers],[11 月]]),1),INDEX(辦公室計劃[],,1),0),MATCH(辦公室差異[[#Headers],[11 月]],辦公室計劃[#Headers],0))-INDEX(辦公室實際數字[],MATCH(INDEX(辦公室差異[],ROW()-ROW(辦公室差異[[#Headers],[11 月]]),1),INDEX(辦公室計劃[],,1),0),MATCH(辦公室差異[[#Headers],[11 月]],辦公室實際數字[#Headers],0)) -> NT$250.00 | N15: =INDEX(辦公室計劃[],MATCH(INDEX(辦公室差異[],ROW()-ROW(辦公室差異[[#Headers],[12 月]]),1),INDEX(辦公室計劃[],,1),0),MATCH(辦公室差異[[#Headers],[12 月]],辦公室計劃[#Headers],0))-INDEX(辦公室實際數字[],MATCH(INDEX(辦公室差異[],ROW()-ROW(辦公室差異[[#Headers],[12 月]]),1),INDEX(辦公室計劃[],,1),0),MATCH(辦公室差異[[#Headers],[12 月]],辦公室實際數字[#Headers],0)) -> NT$250.00 | O15: =SUM(辦公室差異[[#This Row],[1 月]:[12 月]]) -> NT$1,566.00
B16: 網際網路連線 | C16: =INDEX(辦公室計劃[],MATCH(INDEX(辦公室差異[],ROW()-ROW(辦公室差異[[#Headers],[1 月]]),1),INDEX(辦公室計劃[],,1),0),MATCH(辦公室差異[[#Headers],[1 月]],辦公室計劃[#Headers],0))-INDEX(辦公室實際數字[],MATCH(INDEX(辦公室差異[],ROW()-ROW(辦公室差異[[#Headers],[1 月]]),1),INDEX(辦公室計劃[],,1),0),MATCH(辦公室差異[[#Headers],[1 月]],辦公室實際數字[#Headers],0)) -> NT$0.00 | D16: =INDEX(辦公室計劃[],MATCH(INDEX(辦公室差異[],ROW()-ROW(辦公室差異[[#Headers],[2 月]]),1),INDEX(辦公室計劃[],,1),0),MATCH(辦公室差異[[#Headers],[2 月]],辦公室計劃[#Headers],0))-INDEX(辦公室實際數字[],MATCH(INDEX(辦公室差異[],ROW()-ROW(辦公室差異[[#Headers],[2 月]]),1),INDEX(辦公室計劃[],,1),0),MATCH(辦公室差異[[#Headers],[2 月]],辦公室實際數字[#Headers],0)) -> NT$0.00 | E16: =INDEX(辦公室計劃[],MATCH(INDEX(辦公室差異[],ROW()-ROW(辦公室差異[[#Headers],[3 月]]),1),INDEX(辦公室計劃[],,1),0),MATCH(辦公室差異[[#Headers],[3 月]],辦公室計劃[#Headers],0))-INDEX(辦公室實際數字[],MATCH(INDEX(辦公室差異[],ROW()-ROW(辦公室差異[[#Headers],[3 月]]),1),INDEX(辦公室計劃[],,1),0),MATCH(辦公室差異[[#Headers],[3 月]],辦公室實際數字[#Headers],0)) -> NT$0.00 | F16: =INDEX(辦公室計劃[],MATCH(INDEX(辦公室差異[],ROW()-ROW(辦公室差異[[#Headers],[4 月]]),1),INDEX(辦公室計劃[],,1),0),MATCH(辦公室差異[[#Headers],[4 月]],辦公室計劃[#Headers],0))-INDEX(辦公室實際數字[],MATCH(INDEX(辦公室差異[],ROW()-ROW(辦公室差異[[#Headers],[4 月]]),1),INDEX(辦公室計劃[],,1),0),MATCH(辦公室差異[[#Headers],[4 月]],辦公室實際數字[#Headers],0)) -> NT$0.00 | G16: =INDEX(辦公室計劃[],MATCH(INDEX(辦公室差異[],ROW()-ROW(辦公室差異[[#Headers],[5 月]]),1),INDEX(辦公室計劃[],,1),0),MATCH(辦公室差異[[#Headers],[5 月]],辦公室計劃[#Headers],0))-INDEX(辦公室實際數字[],MATCH(INDEX(辦公室差異[],ROW()-ROW(辦公室差異[[#Headers],[5 月]]),1),INDEX(辦公室計劃[],,1),0),MATCH(辦公室差異[[#Headers],[5 月]],辦公室實際數字[#Headers],0)) -> NT$0.00 | H16: =INDEX(辦公室計劃[],MATCH(INDEX(辦公室差異[],ROW()-ROW(辦公室差異[[#Headers],[6 月]]),1),INDEX(辦公室計劃[],,1),0),MATCH(辦公室差異[[#Headers],[6 月]],辦公室計劃[#Headers],0))-INDEX(辦公室實際數字[],MATCH(INDEX(辦公室差異[],ROW()-ROW(辦公室差異[[#Headers],[6 月]]),1),INDEX(辦公室計劃[],,1),0),MATCH(辦公室差異[[#Headers],[6 月]],辦公室實際數字[#Headers],0)) -> NT$0.00 | I16: =INDEX(辦公室計劃[],MATCH(INDEX(辦公室差異[],ROW()-ROW(辦公室差異[[#Headers],[7 月]]),1),INDEX(辦公室計劃[],,1),0),MATCH(辦公室差異[[#Headers],[7 月]],辦公室計劃[#Headers],0))-INDEX(辦公室實際數字[],MATCH(INDEX(辦公室差異[],ROW()-ROW(辦公室差異[[#Headers],[7 月]]),1),INDEX(辦公室計劃[],,1),0),MATCH(辦公室差異[[#Headers],[7 月]],辦公室實際數字[#Headers],0)) -> NT$180.00 | J16: =INDEX(辦公室計劃[],MATCH(INDEX(辦公室差異[],ROW()-ROW(辦公室差異[[#Headers],[8 月]]),1),INDEX(辦公室計劃[],,1),0),MATCH(辦公室差異[[#Headers],[8 月]],辦公室計劃[#Headers],0))-INDEX(辦公室實際數字[],MATCH(INDEX(辦公室差異[],ROW()-ROW(辦公室差異[[#Headers],[8 月]]),1),INDEX(辦公室計劃[],,1),0),MATCH(辦公室差異[[#Headers],[8 月]],辦公室實際數字[#Headers],0)) -> NT$180.00 | K16: =INDEX(辦公室計劃[],MATCH(INDEX(辦公室差異[],ROW()-ROW(辦公室差異[[#Headers],[9 月]]),1),INDEX(辦公室計劃[],,1),0),MATCH(辦公室差異[[#Headers],[9 月]],辦公室計劃[#Headers],0))-INDEX(辦公室實際數字[],MATCH(INDEX(辦公室差異[],ROW()-ROW(辦公室差異[[#Headers],[9 月]]),1),INDEX(辦公室計劃[],,1),0),MATCH(辦公室差異[[#Headers],[9 月]],辦公室實際數字[#Headers],0)) -> NT$180.00 | L16: =INDEX(辦公室計劃[],MATCH(INDEX(辦公室差異[],ROW()-ROW(辦公室差異[[#Headers],[10 月]]),1),INDEX(辦公室計劃[],,1),0),MATCH(辦公室差異[[#Headers],[10 月]],辦公室計劃[#Headers],0))-INDEX(辦公室實際數字[],MATCH(INDEX(辦公室差異[],ROW()-ROW(辦公室差異[[#Headers],[10 月]]),1),INDEX(辦公室計劃[],,1),0),MATCH(辦公室差異[[#Headers],[10 月]],辦公室實際數字[#Headers],0)) -> NT$180.00 | M16: =INDEX(辦公室計劃[],MATCH(INDEX(辦公室差異[],ROW()-ROW(辦公室差異[[#Headers],[11 月]]),1),INDEX(辦公室計劃[],,1),0),MATCH(辦公室差異[[#Headers],[11 月]],辦公室計劃[#Headers],0))-INDEX(辦公室實際數字[],MATCH(INDEX(辦公室差異[],ROW()-ROW(辦公室差異[[#Headers],[11 月]]),1),INDEX(辦公室計劃[],,1),0),MATCH(辦公室差異[[#Headers],[11 月]],辦公室實際數字[#Headers],0)) -> NT$180.00 | N16: =INDEX(辦公室計劃[],MATCH(INDEX(辦公室差異[],ROW()-ROW(辦公室差異[[#Headers],[12 月]]),1),INDEX(辦公室計劃[],,1),0),MATCH(辦公室差異[[#Headers],[12 月]],辦公室計劃[#Headers],0))-INDEX(辦公室實際數字[],MATCH(INDEX(辦公室差異[],ROW()-ROW(辦公室差異[[#Headers],[12 月]]),1),INDEX(辦公室計劃[],,1),0),MATCH(辦公室差異[[#Headers],[12 月]],辦公室實際數字[#Headers],0)) -> NT$180.00 | O16: =SUM(辦公室差異[[#This Row],[1 月]:[12 月]]) -> NT$1,080.00
B17: 辦公室用品 | C17: =INDEX(辦公室計劃[],MATCH(INDEX(辦公室差異[],ROW()-ROW(辦公室差異[[#Headers],[1 月]]),1),INDEX(辦公室計劃[],,1),0),MATCH(辦公室差異[[#Headers],[1 月]],辦公室計劃[#Headers],0))-INDEX(辦公室實際數字[],MATCH(INDEX(辦公室差異[],ROW()-ROW(辦公室差異[[#Headers],[1 月]]),1),INDEX(辦公室計劃[],,1),0),MATCH(辦公室差異[[#Headers],[1 月]],辦公室實際數字[#Headers],0)) -> (NT$56.00) | D17: =INDEX(辦公室計劃[],MATCH(INDEX(辦公室差異[],ROW()-ROW(辦公室差異[[#Headers],[2 月]]),1),INDEX(辦公室計劃[],,1),0),MATCH(辦公室差異[[#Headers],[2 月]],辦公室計劃[#Headers],0))-INDEX(辦公室實際數字[],MATCH(INDEX(辦公室差異[],ROW()-ROW(辦公室差異[[#Headers],[2 月]]),1),INDEX(辦公室計劃[],,1),0),MATCH(辦公室差異[[#Headers],[2 月]],辦公室實際數字[#Headers],0)) -> NT$58.00 | E17: =INDEX(辦公室計劃[],MATCH(INDEX(辦公室差異[],ROW()-ROW(辦公室差異[[#Headers],[3 月]]),1),INDEX(辦公室計劃[],,1),0),MATCH(辦公室差異[[#Headers],[3 月]],辦公室計劃[#Headers],0))-INDEX(辦公室實際數字[],MATCH(INDEX(辦公室差異[],ROW()-ROW(辦公室差異[[#Headers],[3 月]]),1),INDEX(辦公室計劃[],,1),0),MATCH(辦公室差異[[#Headers],[3 月]],辦公室實際數字[#Headers],0)) -> NT$40.00 | F17: =INDEX(辦公室計劃[],MATCH(INDEX(辦公室差異[],ROW()-ROW(辦公室差異[[#Headers],[4 月]]),1),INDEX(辦公室計劃[],,1),0),MATCH(辦公室差異[[#Headers],[4 月]],辦公室計劃[#Headers],0))-INDEX(辦公室實際數字[],MATCH(INDEX(辦公室差異[],ROW()-ROW(辦公室差異[[#Headers],[4 月]]),1),INDEX(辦公室計劃[],,1),0),MATCH(辦公室差異[[#Headers],[4 月]],辦公室實際數字[#Headers],0)) -> (NT$21.00) | G17: =INDEX(辦公室計劃[],MATCH(INDEX(辦公室差異[],ROW()-ROW(辦公室差異[[#Headers],[5 月]]),1),INDEX(辦公室計劃[],,1),0),MATCH(辦公室差異[[#Headers],[5 月]],辦公室計劃[#Headers],0))-INDEX(辦公室實際數字[],MATCH(INDEX(辦公室差異[],ROW()-ROW(辦公室差異[[#Headers],[5 月]]),1),INDEX(辦公室計劃[],,1),0),MATCH(辦公室差異[[#Headers],[5 月]],辦公室實際數字[#Headers],0)) -> (NT$56.00) | H17: =INDEX(辦公室計劃[],MATCH(INDEX(辦公室差異[],ROW()-ROW(辦公室差異[[#Headers],[6 月]]),1),INDEX(辦公室計劃[],,1),0),MATCH(辦公室差異[[#Headers],[6 月]],辦公室計劃[#Headers],0))-INDEX(辦公室實際數字[],MATCH(INDEX(辦公室差異[],ROW()-ROW(辦公室差異[[#Headers],[6 月]]),1),INDEX(辦公室計劃[],,1),0),MATCH(辦公室差異[[#Headers],[6 月]],辦公室實際數字[#Headers],0)) -> (NT$40.00) | I17: =INDEX(辦公室計劃[],MATCH(INDEX(辦公室差異[],ROW()-ROW(辦公室差異[[#Headers],[7 月]]),1),INDEX(辦公室計劃[],,1),0),MATCH(辦公室差異[[#Headers],[7 月]],辦公室計劃[#Headers],0))-INDEX(辦公室實際數字[],MATCH(INDEX(辦公室差異[],ROW()-ROW(辦公室差異[[#Headers],[7 月]]),1),INDEX(辦公室計劃[],,1),0),MATCH(辦公室差異[[#Headers],[7 月]],辦公室實際數字[#Headers],0)) -> NT$200.00 | J17: =INDEX(辦公室計劃[],MATCH(INDEX(辦公室差異[],ROW()-ROW(辦公室差異[[#Headers],[8 月]]),1),INDEX(辦公室計劃[],,1),0),MATCH(辦公室差異[[#Headers],[8 月]],辦公室計劃[#Headers],0))-INDEX(辦公室實際數字[],MATCH(INDEX(辦公室差異[],ROW()-ROW(辦公室差異[[#Headers],[8 月]]),1),INDEX(辦公室計劃[],,1),0),MATCH(辦公室差異[[#Headers],[8 月]],辦公室實際數字[#Headers],0)) -> NT$200.00 | K17: =INDEX(辦公室計劃[],MATCH(INDEX(辦公室差異[],ROW()-ROW(辦公室差異[[#Headers],[9 月]]),1),INDEX(辦公室計劃[],,1),0),MATCH(辦公室差異[[#Headers],[9 月]],辦公室計劃[#Headers],0))-INDEX(辦公室實際數字[],MATCH(INDEX(辦公室差異[],ROW()-ROW(辦公室差異[[#Headers],[9 月]]),1),INDEX(辦公室計劃[],,1),0),MATCH(辦公室差異[[#Headers],[9 月]],辦公室實際數字[#Headers],0)) -> NT$200.00 | L17: =INDEX(辦公室計劃[],MATCH(INDEX(辦公室差異[],ROW()-ROW(辦公室差異[[#Headers],[10 月]]),1),INDEX(辦公室計劃[],,1),0),MATCH(辦公室差異[[#Headers],[10 月]],辦公室計劃[#Headers],0))-INDEX(辦公室實際數字[],MATCH(INDEX(辦公室差異[],ROW()-ROW(辦公室差異[[#Headers],[10 月]]),1),INDEX(辦公室計劃[],,1),0),MATCH(辦公室差異[[#Headers],[10 月]],辦公室實際數字[#Headers],0)) -> NT$200.00 | M17: =INDEX(辦公室計劃[],MATCH(INDEX(辦公室差異[],ROW()-ROW(辦公室差異[[#Headers],[11 月]]),1),INDEX(辦公室計劃[],,1),0),MATCH(辦公室差異[[#Headers],[11 月]],辦公室計劃[#Headers],0))-INDEX(辦公室實際數字[],MATCH(INDEX(辦公室差異[],ROW()-ROW(辦公室差異[[#Headers],[11 月]]),1),INDEX(辦公室計劃[],,1),0),MATCH(辦公室差異[[#Headers],[11 月]],辦公室實際數字[#Headers],0)) -> NT$200.00 | N17: =INDEX(辦公室計劃[],MATCH(INDEX(辦公室差異[],ROW()-ROW(辦公室差異[[#Headers],[12 月]]),1),INDEX(辦公室計劃[],,1),0),MATCH(辦公室差異[[#Headers],[12 月]],辦公室計劃[#Headers],0))-INDEX(辦公室實際數字[],MATCH(INDEX(辦公室差異[],ROW()-ROW(辦公室差異[[#Headers],[12 月]]),1),INDEX(辦公室計劃[],,1),0),MATCH(辦公室差異[[#Headers],[12 月]],辦公室實際數字[#Headers],0)) -> NT$200.00 | O17: =SUM(辦公室差異[[#This Row],[1 月]:[12 月]]) -> NT$1,125.00
B18: 保全 | C18: =INDEX(辦公室計劃[],MATCH(INDEX(辦公室差異[],ROW()-ROW(辦公室差異[[#Headers],[1 月]]),1),INDEX(辦公室計劃[],,1),0),MATCH(辦公室差異[[#Headers],[1 月]],辦公室計劃[#Headers],0))-INDEX(辦公室實際數字[],MATCH(INDEX(辦公室差異[],ROW()-ROW(辦公室差異[[#Headers],[1 月]]),1),INDEX(辦公室計劃[],,1),0),MATCH(辦公室差異[[#Headers],[1 月]],辦公室實際數字[#Headers],0)) -> NT$0.00 | D18: =INDEX(辦公室計劃[],MATCH(INDEX(辦公室差異[],ROW()-ROW(辦公室差異[[#Headers],[2 月]]),1),INDEX(辦公室計劃[],,1),0),MATCH(辦公室差異[[#Headers],[2 月]],辦公室計劃[#Headers],0))-INDEX(辦公室實際數字[],MATCH(INDEX(辦公室差異[],ROW()-ROW(辦公室差異[[#Headers],[2 月]]),1),INDEX(辦公室計劃[],,1),0),MATCH(辦公室差異[[#Headers],[2 月]],辦公室實際數字[#Headers],0)) -> NT$0.00 | E18: =INDEX(辦公室計劃[],MATCH(INDEX(辦公室差異[],ROW()-ROW(辦公室差異[[#Headers],[3 月]]),1),INDEX(辦公室計劃[],,1),0),MATCH(辦公室差異[[#Headers],[3 月]],辦公室計劃[#Headers],0))-INDEX(辦公室實際數字[],MATCH(INDEX(辦公室差異[],ROW()-ROW(辦公室差異[[#Headers],[3 月]]),1),INDEX(辦公室計劃[],,1),0),MATCH(辦公室差異[[#Headers],[3 月]],辦公室實際數字[#Headers],0)) -> NT$0.00 | F18: =INDEX(辦公室計劃[],MATCH(INDEX(辦公室差異[],ROW()-ROW(辦公室差異[[#Headers],[4 月]]),1),INDEX(辦公室計劃[],,1),0),MATCH(辦公室差異[[#Headers],[4 月]],辦公室計劃[#Headers],0))-INDEX(辦公室實際數字[],MATCH(INDEX(辦公室差異[],ROW()-ROW(辦公室差異[[#Headers],[4 月]]),1),INDEX(辦公室計劃[],,1),0),MATCH(辦公室差異[[#Headers],[4 月]],辦公室實際數字[#Headers],0)) -> NT$0.00 | G18: =INDEX(辦公室計劃[],MATCH(INDEX(辦公室差異[],ROW()-ROW(辦公室差異[[#Headers],[5 月]]),1),INDEX(辦公室計劃[],,1),0),MATCH(辦公室差異[[#Headers],[5 月]],辦公室計劃[#Headers],0))-INDEX(辦公室實際數字[],MATCH(INDEX(辦公室差異[],ROW()-ROW(辦公室差異[[#Headers],[5 月]]),1),INDEX(辦公室計劃[],,1),0),MATCH(辦公室差異[[#Headers],[5 月]],辦公室實際數字[#Headers],0)) -> NT$0.00 | H18: =INDEX(辦公室計劃[],MATCH(INDEX(辦公室差異[],ROW()-ROW(辦公室差異[[#Headers],[6 月]]),1),INDEX(辦公室計劃[],,1),0),MATCH(辦公室差異[[#Headers],[6 月]],辦公室計劃[#Headers],0))-INDEX(辦公室實際數字[],MATCH(INDEX(辦公室差異[],ROW()-ROW(辦公室差異[[#Headers],[6 月]]),1),INDEX(辦公室計劃[],,1),0),MATCH(辦公室差異[[#Headers],[6 月]],辦公室實際數字[#Headers],0)) -> NT$0.00 | I18: =INDEX(辦公室計劃[],MATCH(INDEX(辦公室差異[],ROW()-ROW(辦公室差異[[#Headers],[7 月]]),1),INDEX(辦公室計劃[],,1),0),MATCH(辦公室差異[[#Headers],[7 月]],辦公室計劃[#Headers],0))-INDEX(辦公室實際數字[],MATCH(INDEX(辦公室差異[],ROW()-ROW(辦公室差異[[#Headers],[7 月]]),1),INDEX(辦公室計劃[],,1),0),MATCH(辦公室差異[[#Headers],[7 月]],辦公室實際數字[#Headers],0)) -> NT$600.00 | J18: =INDEX(辦公室計劃[],MATCH(INDEX(辦公室差異[],ROW()-ROW(辦公室差異[[#Headers],[8 月]]),1),INDEX(辦公室計劃[],,1),0),MATCH(辦公室差異[[#Headers],[8 月]],辦公室計劃[#Headers],0))-INDEX(辦公室實際數字[],MATCH(INDEX(辦公室差異[],ROW()-ROW(辦公室差異[[#Headers],[8 月]]),1),INDEX(辦公室計劃[],,1),0),MATCH(辦公室差異[[#Headers],[8 月]],辦公室實際數字[#Headers],0)) -> NT$600.00 | K18: =INDEX(辦公室計劃[],MATCH(INDEX(辦公室差異[],ROW()-ROW(辦公室差異[[#Headers],[9 月]]),1),INDEX(辦公室計劃[],,1),0),MATCH(辦公室差異[[#Headers],[9 月]],辦公室計劃[#Headers],0))-INDEX(辦公室實際數字[],MATCH(INDEX(辦公室差異[],ROW()-ROW(辦公室差異[[#Headers],[9 月]]),1),INDEX(辦公室計劃[],,1),0),MATCH(辦公室差異[[#Headers],[9 月]],辦公室實際數字[#Headers],0)) -> NT$600.00 | L18: =INDEX(辦公室計劃[],MATCH(INDEX(辦公室差異[],ROW()-ROW(辦公室差異[[#Headers],[10 月]]),1),INDEX(辦公室計劃[],,1),0),MATCH(辦公室差異[[#Headers],[10 月]],辦公室計劃[#Headers],0))-INDEX(辦公室實際數字[],MATCH(INDEX(辦公室差異[],ROW()-ROW(辦公室差異[[#Headers],[10 月]]),1),INDEX(辦公室計劃[],,1),0),MATCH(辦公室差異[[#Headers],[10 月]],辦公室實際數字[#Headers],0)) -> NT$600.00 | M18: =INDEX(辦公室計劃[],MATCH(INDEX(辦公室差異[],ROW()-ROW(辦公室差異[[#Headers],[11 月]]),1),INDEX(辦公室計劃[],,1),0),MATCH(辦公室差異[[#Headers],[11 月]],辦公室計劃[#Headers],0))-INDEX(辦公室實際數字[],MATCH(INDEX(辦公室差異[],ROW()-ROW(辦公室差異[[#Headers],[11 月]]),1),INDEX(辦公室計劃[],,1),0),MATCH(辦公室差異[[#Headers],[11 月]],辦公室實際數字[#Headers],0)) -> NT$600.00 | N18: =INDEX(辦公室計劃[],MATCH(INDEX(辦公室差異[],ROW()-ROW(辦公室差異[[#Headers],[12 月]]),1),INDEX(辦公室計劃[],,1),0),MATCH(辦公室差異[[#Headers],[12 月]],辦公室計劃[#Headers],0))-INDEX(辦公室實際數字[],MATCH(INDEX(辦公室差異[],ROW()-ROW(辦公室差異[[#Headers],[12 月]]),1),INDEX(辦公室計劃[],,1),0),MATCH(辦公室差異[[#Headers],[12 月]],辦公室實際數字[#Headers],0)) -> NT$600.00 | O18: =SUM(辦公室差異[[#This Row],[1 月]:[12 月]]) -> NT$3,600.00
B19: 小計 | C19: =SUBTOTAL(109,辦公室差異[1 月]) -> (NT$17.00) | D19: =SUBTOTAL(109,辦公室差異[2 月]) -> NT$72.00 | E19: =SUBTOTAL(109,辦公室差異[3 月]) -> NT$78.00 | F19: =SUBTOTAL(109,辦公室差異[4 月]) -> (NT$141.00) | G19: =SUBTOTAL(109,辦公室差異[5 月]) -> (NT$38.00) | H19: =SUBTOTAL(109,辦公室差異[6 月]) -> NT$16.00 | I19: =SUBTOTAL(109,辦公室差異[7 月]) -> NT$11,470.00 | J19: =SUBTOTAL(109,辦公室差異[8 月]) -> NT$11,470.00 | K19: =SUBTOTAL(109,辦公室差異[9 月]) -> NT$11,470.00 | L19: =SUBTOTAL(109,辦公室差異[10 月]) -> NT$11,470.00 | M19: =SUBTOTAL(109,辦公室差異[11 月]) -> NT$11,770.00 | N19: =SUBTOTAL(109,辦公室差異[12 月]) -> NT$11,770.00 | O19: =SUBTOTAL(109,辦公室差異[年度]) -> NT$69,390.00
B21: 行銷成本 | C21: 1 月 | D21: 2 月 | E21: 3 月 | F21: 4 月 | G21: 5 月 | H21: 6 月 | I21: 7 月 | J21: 8 月 | K21: 9 月 | L21: 10 月 | M21: 11 月 | N21: 12 月 | O21: 年度
B22: 網站託管 | C22: =INDEX(行銷計劃[],MATCH(INDEX(行銷差異[],ROW()-ROW(行銷差異[[#Headers],[1 月]]),1),INDEX(行銷計劃[],,1),0),MATCH(行銷差異[[#Headers],[1 月]],行銷計劃[#Headers],0))-INDEX(行銷實際數字[],MATCH(INDEX(行銷差異[],ROW()-ROW(行銷差異[[#Headers],[1 月]]),1),INDEX(行銷計劃[],,1),0),MATCH(行銷差異[[#Headers],[1 月]],行銷實際數字[#Headers],0)) -> NT$0.00 | D22: =INDEX(行銷計劃[],MATCH(INDEX(行銷差異[],ROW()-ROW(行銷差異[[#Headers],[2 月]]),1),INDEX(行銷計劃[],,1),0),MATCH(行銷差異[[#Headers],[2 月]],行銷計劃[#Headers],0))-INDEX(行銷實際數字[],MATCH(INDEX(行銷差異[],ROW()-ROW(行銷差異[[#Headers],[2 月]]),1),INDEX(行銷計劃[],,1),0),MATCH(行銷差異[[#Headers],[2 月]],行銷實際數字[#Headers],0)) -> NT$0.00 | E22: =INDEX(行銷計劃[],MATCH(INDEX(行銷差異[],ROW()-ROW(行銷差異[[#Headers],[3 月]]),1),INDEX(行銷計劃[],,1),0),MATCH(行銷差異[[#Headers],[3 月]],行銷計劃[#Headers],0))-INDEX(行銷實際數字[],MATCH(INDEX(行銷差異[],ROW()-ROW(行銷差異[[#Headers],[3 月]]),1),INDEX(行銷計劃[],,1),0),MATCH(行銷差異[[#Headers],[3 月]],行銷實際數字[#Headers],0)) -> NT$0.00 | F22: =INDEX(行銷計劃[],MATCH(INDEX(行銷差異[],ROW()-ROW(行銷差異[[#Headers],[4 月]]),1),INDEX(行銷計劃[],,1),0),MATCH(行銷差異[[#Headers],[4 月]],行銷計劃[#Headers],0))-INDEX(行銷實際數字[],MATCH(INDEX(行銷差異[],ROW()-ROW(行銷差異[[#Headers],[4 月]]),1),INDEX(行銷計劃[],,1),0),MATCH(行銷差異[[#Headers],[4 月]],行銷實際數字[#Headers],0)) -> NT$0.00 | G22: =INDEX(行銷計劃[],MATCH(INDEX(行銷差異[],ROW()-ROW(行銷差異[[#Headers],[5 月]]),1),INDEX(行銷計劃[],,1),0),MATCH(行銷差異[[#Headers],[5 月]],行銷計劃[#Headers],0))-INDEX(行銷實際數字[],MATCH(INDEX(行銷差異[],ROW()-ROW(行銷差異[[#Headers],[5 月]]),1),INDEX(行銷計劃[],,1),0),MATCH(行銷差異[[#Headers],[5 月]],行銷實際數字[#Headers],0)) -> NT$0.00 | H22: =INDEX(行銷計劃[],MATCH(INDEX(行銷差異[],ROW()-ROW(行銷差異[[#Headers],[6 月]]),1),INDEX(行銷計劃[],,1),0),MATCH(行銷差異[[#Headers],[6 月]],行銷計劃[#Headers],0))-INDEX(行銷實際數字[],MATCH(INDEX(行銷差異[],ROW()-ROW(行銷差異[[#Headers],[6 月]]),1),INDEX(行銷計劃[],,1),0),MATCH(行銷差異[[#Headers],[6 月]],行銷實際數字[#Headers],0)) -> NT$0.00 | I22: =INDEX(行銷計劃[],MATCH(INDEX(行銷差異[],ROW()-ROW(行銷差異[[#Headers],[7 月]]),1),INDEX(行銷計劃[],,1),0),MATCH(行銷差異[[#Headers],[7 月]],行銷計劃[#Headers],0))-INDEX(行銷實際數字[],MATCH(INDEX(行銷差異[],ROW()-ROW(行銷差異[[#Headers],[7 月]]),1),INDEX(行銷計劃[],,1),0),MATCH(行銷差異[[#Headers],[7 月]],行銷實際數字[#Headers],0)) -> NT$500.00 | J22: =INDEX(行銷計劃[],MATCH(INDEX(行銷差異[],ROW()-ROW(行銷差異[[#Headers],[8 月]]),1),INDEX(行銷計劃[],,1),0),MATCH(行銷差異[[#Headers],[8 月]],行銷計劃[#Headers],0))-INDEX(行銷實際數字[],MATCH(INDEX(行銷差異[],ROW()-ROW(行銷差異[[#Headers],[8 月]]),1),INDEX(行銷計劃[],,1),0),MATCH(行銷差異[[#Headers],[8 月]],行銷實際數字[#Headers],0)) -> NT$500.00 | K22: =INDEX(行銷計劃[],MATCH(INDEX(行銷差異[],ROW()-ROW(行銷差異[[#Headers],[9 月]]),1),INDEX(行銷計劃[],,1),0),MATCH(行銷差異[[#Headers],[9 月]],行銷計劃[#Headers],0))-INDEX(行銷實際數字[],MATCH(INDEX(行銷差異[],ROW()-ROW(行銷差異[[#Headers],[9 月]]),1),INDEX(行銷計劃[],,1),0),MATCH(行銷差異[[#Headers],[9 月]],行銷實際數字[#Headers],0)) -> NT$500.00 | L22: =INDEX(行銷計劃[],MATCH(INDEX(行銷差異[],ROW()-ROW(行銷差異[[#Headers],[10 月]]),1),INDEX(行銷計劃[],,1),0),MATCH(行銷差異[[#Headers],[10 月]],行銷計劃[#Headers],0))-INDEX(行銷實際數字[],MATCH(INDEX(行銷差異[],ROW()-ROW(行銷差異[[#Headers],[10 月]]),1),INDEX(行銷計劃[],,1),0),MATCH(行銷差異[[#Headers],[10 月]],行銷實際數字[#Headers],0)) -> NT$500.00 | M22: =INDEX(行銷計劃[],MATCH(INDEX(行銷差異[],ROW()-ROW(行銷差異[[#Headers],[11 月]]),1),INDEX(行銷計劃[],,1),0),MATCH(行銷差異[[#Headers],[11 月]],行銷計劃[#Headers],0))-INDEX(行銷實際數字[],MATCH(INDEX(行銷差異[],ROW()-ROW(行銷差異[[#Headers],[11 月]]),1),INDEX(行銷計劃[],,1),0),MATCH(行銷差異[[#Headers],[11 月]],行銷實際數字[#Headers],0)) -> NT$500.00 | N22: =INDEX(行銷計劃[],MATCH(INDEX(行銷差異[],ROW()-ROW(行銷差異[[#Headers],[12 月]]),1),INDEX(行銷計劃[],,1),0),MATCH(行銷差異[[#Headers],[12 月]],行銷計劃[#Headers],0))-INDEX(行銷實際數字[],MATCH(INDEX(行銷差異[],ROW()-ROW(行銷差異[[#Headers],[12 月]]),1),INDEX(行銷計劃[],,1),0),MATCH(行銷差異[[#Headers],[12 月]],行銷實際數字[#Headers],0)) -> NT$500.00 | O22: =SUM(行銷差異[[#This Row],[1 月]:[12 月]]) -> NT$3,000.00
B23: 網站更新 | C23: =INDEX(行銷計劃[],MATCH(INDEX(行銷差異[],ROW()-ROW(行銷差異[[#Headers],[1 月]]),1),INDEX(行銷計劃[],,1),0),MATCH(行銷差異[[#Headers],[1 月]],行銷計劃[#Headers],0))-INDEX(行銷實際數字[],MATCH(INDEX(行銷差異[],ROW()-ROW(行銷差異[[#Headers],[1 月]]),1),INDEX(行銷計劃[],,1),0),MATCH(行銷差異[[#Headers],[1 月]],行銷實際數字[#Headers],0)) -> NT$0.00 | D23: =INDEX(行銷計劃[],MATCH(INDEX(行銷差異[],ROW()-ROW(行銷差異[[#Headers],[2 月]]),1),INDEX(行銷計劃[],,1),0),MATCH(行銷差異[[#Headers],[2 月]],行銷計劃[#Headers],0))-INDEX(行銷實際數字[],MATCH(INDEX(行銷差異[],ROW()-ROW(行銷差異[[#Headers],[2 月]]),1),INDEX(行銷計劃[],,1),0),MATCH(行銷差異[[#Headers],[2 月]],行銷實際數字[#Headers],0)) -> NT$0.00 | E23: =INDEX(行銷計劃[],MATCH(INDEX(行銷差異[],ROW()-ROW(行銷差異[[#Headers],[3 月]]),1),INDEX(行銷計劃[],,1),0),MATCH(行銷差異[[#Headers],[3 月]],行銷計劃[#Headers],0))-INDEX(行銷實際數字[],MATCH(INDEX(行銷差異[],ROW()-ROW(行銷差異[[#Headers],[3 月]]),1),INDEX(行銷計劃[],,1),0),MATCH(行銷差異[[#Headers],[3 月]],行銷實際數字[#Headers],0)) -> NT$0.00 | F23: =INDEX(行銷計劃[],MATCH(INDEX(行銷差異[],ROW()-ROW(行銷差異[[#Headers],[4 月]]),1),INDEX(行銷計劃[],,1),0),MATCH(行銷差異[[#Headers],[4 月]],行銷計劃[#Headers],0))-INDEX(行銷實際數字[],MATCH(INDEX(行銷差異[],ROW()-ROW(行銷差異[[#Headers],[4 月]]),1),INDEX(行銷計劃[],,1),0),MATCH(行銷差異[[#Headers],[4 月]],行銷實際數字[#Headers],0)) -> NT$0.00 | G23: =INDEX(行銷計劃[],MATCH(INDEX(行銷差異[],ROW()-ROW(行銷差異[[#Headers],[5 月]]),1),INDEX(行銷計劃[],,1),0),MATCH(行銷差異[[#Headers],[5 月]],行銷計劃[#Headers],0))-INDEX(行銷實際數字[],MATCH(INDEX(行銷差異[],ROW()-ROW(行銷差異[[#Headers],[5 月]]),1),INDEX(行銷計劃[],,1),0),MATCH(行銷差異[[#Headers],[5 月]],行銷實際數字[#Headers],0)) -> NT$0.00 | H23: =INDEX(行銷計劃[],MATCH(INDEX(行銷差異[],ROW()-ROW(行銷差異[[#Headers],[6 月]]),1),INDEX(行銷計劃[],,1),0),MATCH(行銷差異[[#Headers],[6 月]],行銷計劃[#Headers],0))-INDEX(行銷實際數字[],MATCH(INDEX(行銷差異[],ROW()-ROW(行銷差異[[#Headers],[6 月]]),1),INDEX(行銷計劃[],,1),0),MATCH(行銷差異[[#Headers],[6 月]],行銷實際數字[#Headers],0)) -> (NT$500.00) | I23: =INDEX(行銷計劃[],MATCH(INDEX(行銷差異[],ROW()-ROW(行銷差異[[#Headers],[7 月]]),1),INDEX(行銷計劃[],,1),0),MATCH(行銷差異[[#Headers],[7 月]],行銷計劃[#Headers],0))-INDEX(行銷實際數字[],MATCH(INDEX(行銷差異[],ROW()-ROW(行銷差異[[#Headers],[7 月]]),1),INDEX(行銷計劃[],,1),0),MATCH(行銷差異[[#Headers],[7 月]],行銷實際數字[#Headers],0)) -> NT$200.00 | J23: =INDEX(行銷計劃[],MATCH(INDEX(行銷差異[],ROW()-ROW(行銷差異[[#Headers],[8 月]]),1),INDEX(行銷計劃[],,1),0),MATCH(行銷差異[[#Headers],[8 月]],行銷計劃[#Headers],0))-INDEX(行銷實際數字[],MATCH(INDEX(行銷差異[],ROW()-ROW(行銷差異[[#Headers],[8 月]]),1),INDEX(行銷計劃[],,1),0),MATCH(行銷差異[[#Headers],[8 月]],行銷實際數字[#Headers],0)) -> NT$200.00 | K23: =INDEX(行銷計劃[],MATCH(INDEX(行銷差異[],ROW()-ROW(行銷差異[[#Headers],[9 月]]),1),INDEX(行銷計劃[],,1),0),MATCH(行銷差異[[#Headers],[9 月]],行銷計劃[#Headers],0))-INDEX(行銷實際數字[],MATCH(INDEX(行銷差異[],ROW()-ROW(行銷差異[[#Headers],[9 月]]),1),INDEX(行銷計劃[],,1),0),MATCH(行銷差異[[#Headers],[9 月]],行銷實際數字[#Headers],0)) -> NT$200.00 | L23: =INDEX(行銷計劃[],MATCH(INDEX(行銷差異[],ROW()-ROW(行銷差異[[#Headers],[10 月]]),1),INDEX(行銷計劃[],,1),0),MATCH(行銷差異[[#Headers],[10 月]],行銷計劃[#Headers],0))-INDEX(行銷實際數字[],MATCH(INDEX(行銷差異[],ROW()-ROW(行銷差異[[#Headers],[10 月]]),1),INDEX(行銷計劃[],,1),0),MATCH(行銷差異[[#Headers],[10 月]],行銷實際數字[#Headers],0)) -> NT$200.00 | M23: =INDEX(行銷計劃[],MATCH(INDEX(行銷差異[],ROW()-ROW(行銷差異[[#Headers],[11 月]]),1),INDEX(行銷計劃[],,1),0),MATCH(行銷差異[[#Headers],[11 月]],行銷計劃[#Headers],0))-INDEX(行銷實際數字[],MATCH(INDEX(行銷差異[],ROW()-ROW(行銷差異[[#Headers],[11 月]]),1),INDEX(行銷計劃[],,1),0),MATCH(行銷差異[[#Headers],[11 月]],行銷實際數字[#Headers],0)) -> NT$200.00 | N23: =INDEX(行銷計劃[],MATCH(INDEX(行銷差異[],ROW()-ROW(行銷差異[[#Headers],[12 月]]),1),INDEX(行銷計劃[],,1),0),MATCH(行銷差異[[#Headers],[12 月]],行銷計劃[#Headers],0))-INDEX(行銷實際數字[],MATCH(INDEX(行銷差異[],ROW()-ROW(行銷差異[[#Headers],[12 月]]),1),INDEX(行銷計劃[],,1),0),MATCH(行銷差異[[#Headers],[12 月]],行銷實際數字[#Headers],0)) -> NT$1,000.00 | O23: =SUM(行銷差異[[#This Row],[1 月]:[12 月]]) -> NT$1,500.00
B24: 準備相關資料 | C24: =INDEX(行銷計劃[],MATCH(INDEX(行銷差異[],ROW()-ROW(行銷差異[[#Headers],[1 月]]),1),INDEX(行銷計劃[],,1),0),MATCH(行銷差異[[#Headers],[1 月]],行銷計劃[#Headers],0))-INDEX(行銷實際數字[],MATCH(INDEX(行銷差異[],ROW()-ROW(行銷差異[[#Headers],[1 月]]),1),INDEX(行銷計劃[],,1),0),MATCH(行銷差異[[#Headers],[1 月]],行銷實際數字[#Headers],0)) -> NT$200.00 | D24: =INDEX(行銷計劃[],MATCH(INDEX(行銷差異[],ROW()-ROW(行銷差異[[#Headers],[2 月]]),1),INDEX(行銷計劃[],,1),0),MATCH(行銷差異[[#Headers],[2 月]],行銷計劃[#Headers],0))-INDEX(行銷實際數字[],MATCH(INDEX(行銷差異[],ROW()-ROW(行銷差異[[#Headers],[2 月]]),1),INDEX(行銷計劃[],,1),0),MATCH(行銷差異[[#Headers],[2 月]],行銷實際數字[#Headers],0)) -> NT$0.00 | E24: =INDEX(行銷計劃[],MATCH(INDEX(行銷差異[],ROW()-ROW(行銷差異[[#Headers],[3 月]]),1),INDEX(行銷計劃[],,1),0),MATCH(行銷差異[[#Headers],[3 月]],行銷計劃[#Headers],0))-INDEX(行銷實際數字[],MATCH(INDEX(行銷差異[],ROW()-ROW(行銷差異[[#Headers],[3 月]]),1),INDEX(行銷計劃[],,1),0),MATCH(行銷差異[[#Headers],[3 月]],行銷實際數字[#Headers],0)) -> NT$0.00 | F24: =INDEX(行銷計劃[],MATCH(INDEX(行銷差異[],ROW()-ROW(行銷差異[[#Headers],[4 月]]),1),INDEX(行銷計劃[],,1),0),MATCH(行銷差異[[#Headers],[4 月]],行銷計劃[#Headers],0))-INDEX(行銷實際數字[],MATCH(INDEX(行銷差異[],ROW()-ROW(行銷差異[[#Headers],[4 月]]),1),INDEX(行銷計劃[],,1),0),MATCH(行銷差異[[#Headers],[4 月]],行銷實際數字[#Headers],0)) -> (NT$500.00) | G24: =INDEX(行銷計劃[],MATCH(INDEX(行銷差異[],ROW()-ROW(行銷差異[[#Headers],[5 月]]),1),INDEX(行銷計劃[],,1),0),MATCH(行銷差異[[#Headers],[5 月]],行銷計劃[#Headers],0))-INDEX(行銷實際數字[],MATCH(INDEX(行銷差異[],ROW()-ROW(行銷差異[[#Headers],[5 月]]),1),INDEX(行銷計劃[],,1),0),MATCH(行銷差異[[#Headers],[5 月]],行銷實際數字[#Headers],0)) -> NT$0.00 | H24: =INDEX(行銷計劃[],MATCH(INDEX(行銷差異[],ROW()-ROW(行銷差異[[#Headers],[6 月]]),1),INDEX(行銷計劃[],,1),0),MATCH(行銷差異[[#Headers],[6 月]],行銷計劃[#Headers],0))-INDEX(行銷實際數字[],MATCH(INDEX(行銷差異[],ROW()-ROW(行銷差異[[#Headers],[6 月]]),1),INDEX(行銷計劃[],,1),0),MATCH(行銷差異[[#Headers],[6 月]],行銷實際數字[#Headers],0)) -> NT$0.00 | I24: =INDEX(行銷計劃[],MATCH(INDEX(行銷差異[],ROW()-ROW(行銷差異[[#Headers],[7 月]]),1),INDEX(行銷計劃[],,1),0),MATCH(行銷差異[[#Headers],[7 月]],行銷計劃[#Headers],0))-INDEX(行銷實際數字[],MATCH(INDEX(行銷差異[],ROW()-ROW(行銷差異[[#Headers],[7 月]]),1),INDEX(行銷計劃[],,1),0),MATCH(行銷差異[[#Headers],[7 月]],行銷實際數字[#Headers],0)) -> NT$5,000.00 | J24: =INDEX(行銷計劃[],MATCH(INDEX(行銷差異[],ROW()-ROW(行銷差異[[#Headers],[8 月]]),1),INDEX(行銷計劃[],,1),0),MATCH(行銷差異[[#Headers],[8 月]],行銷計劃[#Headers],0))-INDEX(行銷實際數字[],MATCH(INDEX(行銷差異[],ROW()-ROW(行銷差異[[#Headers],[8 月]]),1),INDEX(行銷計劃[],,1),0),MATCH(行銷差異[[#Headers],[8 月]],行銷實際數字[#Headers],0)) -> NT$0.00 | K24: =INDEX(行銷計劃[],MATCH(INDEX(行銷差異[],ROW()-ROW(行銷差異[[#Headers],[9 月]]),1),INDEX(行銷計劃[],,1),0),MATCH(行銷差異[[#Headers],[9 月]],行銷計劃[#Headers],0))-INDEX(行銷實際數字[],MATCH(INDEX(行銷差異[],ROW()-ROW(行銷差異[[#Headers],[9 月]]),1),INDEX(行銷計劃[],,1),0),MATCH(行銷差異[[#Headers],[9 月]],行銷實際數字[#Headers],0)) -> NT$0.00 | L24: =INDEX(行銷計劃[],MATCH(INDEX(行銷差異[],ROW()-ROW(行銷差異[[#Headers],[10 月]]),1),INDEX(行銷計劃[],,1),0),MATCH(行銷差異[[#Headers],[10 月]],行銷計劃[#Headers],0))-INDEX(行銷實際數字[],MATCH(INDEX(行銷差異[],ROW()-ROW(行銷差異[[#Headers],[10 月]]),1),INDEX(行銷計劃[],,1),0),MATCH(行銷差異[[#Headers],[10 月]],行銷實際數字[#Headers],0)) -> NT$5,000.00 | M24: =INDEX(行銷計劃[],MATCH(INDEX(行銷差異[],ROW()-ROW(行銷差異[[#Headers],[11 月]]),1),INDEX(行銷計劃[],,1),0),MATCH(行銷差異[[#Headers],[11 月]],行銷計劃[#Headers],0))-INDEX(行銷實際數字[],MATCH(INDEX(行銷差異[],ROW()-ROW(行銷差異[[#Headers],[11 月]]),1),INDEX(行銷計劃[],,1),0),MATCH(行銷差異[[#Headers],[11 月]],行銷實際數字[#Headers],0)) -> NT$0.00 | N24: =INDEX(行銷計劃[],MATCH(INDEX(行銷差異[],ROW()-ROW(行銷差異[[#Headers],[12 月]]),1),INDEX(行銷計劃[],,1),0),MATCH(行銷差異[[#Headers],[12 月]],行銷計劃[#Headers],0))-INDEX(行銷實際數字[],MATCH(INDEX(行銷差異[],ROW()-ROW(行銷差異[[#Headers],[12 月]]),1),INDEX(行銷計劃[],,1),0),MATCH(行銷差異[[#Headers],[12 月]],行銷實際數字[#Headers],0)) -> NT$0.00 | O24: =SUM(行銷差異[[#This Row],[1 月]:[12 月]]) -> NT$9,700.00
B25: 列印相關資料 | C25: =INDEX(行銷計劃[],MATCH(INDEX(行銷差異[],ROW()-ROW(行銷差異[[#Headers],[1 月]]),1),INDEX(行銷計劃[],,1),0),MATCH(行銷差異[[#Headers],[1 月]],行銷計劃[#Headers],0))-INDEX(行銷實際數字[],MATCH(INDEX(行銷差異[],ROW()-ROW(行銷差異[[#Headers],[1 月]]),1),INDEX(行銷計劃[],,1),0),MATCH(行銷差異[[#Headers],[1 月]],行銷實際數字[#Headers],0)) -> NT$100.00 | D25: =INDEX(行銷計劃[],MATCH(INDEX(行銷差異[],ROW()-ROW(行銷差異[[#Headers],[2 月]]),1),INDEX(行銷計劃[],,1),0),MATCH(行銷差異[[#Headers],[2 月]],行銷計劃[#Headers],0))-INDEX(行銷實際數字[],MATCH(INDEX(行銷差異[],ROW()-ROW(行銷差異[[#Headers],[2 月]]),1),INDEX(行銷計劃[],,1),0),MATCH(行銷差異[[#Headers],[2 月]],行銷實際數字[#Headers],0)) -> (NT$300.00) | E25: =INDEX(行銷計劃[],MATCH(INDEX(行銷差異[],ROW()-ROW(行銷差異[[#Headers],[3 月]]),1),INDEX(行銷計劃[],,1),0),MATCH(行銷差異[[#Headers],[3 月]],行銷計劃[#Headers],0))-INDEX(行銷實際數字[],MATCH(INDEX(行銷差異[],ROW()-ROW(行銷差異[[#Headers],[3 月]]),1),INDEX(行銷計劃[],,1),0),MATCH(行銷差異[[#Headers],[3 月]],行銷實際數字[#Headers],0)) -> NT$100.00 | F25: =INDEX(行銷計劃[],MATCH(INDEX(行銷差異[],ROW()-ROW(行銷差異[[#Headers],[4 月]]),1),INDEX(行銷計劃[],,1),0),MATCH(行銷差異[[#Headers],[4 月]],行銷計劃[#Headers],0))-INDEX(行銷實際數字[],MATCH(INDEX(行銷差異[],ROW()-ROW(行銷差異[[#Headers],[4 月]]),1),INDEX(行銷計劃[],,1),0),MATCH(行銷差異[[#Headers],[4 月]],行銷實際數字[#Headers],0)) -> NT$100.00 | G25: =INDEX(行銷計劃[],MATCH(INDEX(行銷差異[],ROW()-ROW(行銷差異[[#Headers],[5 月]]),1),INDEX(行銷計劃[],,1),0),MATCH(行銷差異[[#Headers],[5 月]],行銷計劃[#Headers],0))-INDEX(行銷實際數字[],MATCH(INDEX(行銷差異[],ROW()-ROW(行銷差異[[#Headers],[5 月]]),1),INDEX(行銷計劃[],,1),0),MATCH(行銷差異[[#Headers],[5 月]],行銷實際數字[#Headers],0)) -> (NT$400.00) | H25: =INDEX(行銷計劃[],MATCH(INDEX(行銷差異[],ROW()-ROW(行銷差異[[#Headers],[6 月]]),1),INDEX(行銷計劃[],,1),0),MATCH(行銷差異[[#Headers],[6 月]],行銷計劃[#Headers],0))-INDEX(行銷實際數字[],MATCH(INDEX(行銷差異[],ROW()-ROW(行銷差異[[#Headers],[6 月]]),1),INDEX(行銷計劃[],,1),0),MATCH(行銷差異[[#Headers],[6 月]],行銷實際數字[#Headers],0)) -> NT$20.00 | I25: =INDEX(行銷計劃[],MATCH(INDEX(行銷差異[],ROW()-ROW(行銷差異[[#Headers],[7 月]]),1),INDEX(行銷計劃[],,1),0),MATCH(行銷差異[[#Headers],[7 月]],行銷計劃[#Headers],0))-INDEX(行銷實際數字[],MATCH(INDEX(行銷差異[],ROW()-ROW(行銷差異[[#Headers],[7 月]]),1),INDEX(行銷計劃[],,1),0),MATCH(行銷差異[[#Headers],[7 月]],行銷實際數字[#Headers],0)) -> NT$200.00 | J25: =INDEX(行銷計劃[],MATCH(INDEX(行銷差異[],ROW()-ROW(行銷差異[[#Headers],[8 月]]),1),INDEX(行銷計劃[],,1),0),MATCH(行銷差異[[#Headers],[8 月]],行銷計劃[#Headers],0))-INDEX(行銷實際數字[],MATCH(INDEX(行銷差異[],ROW()-ROW(行銷差異[[#Headers],[8 月]]),1),INDEX(行銷計劃[],,1),0),MATCH(行銷差異[[#Headers],[8 月]],行銷實際數字[#Headers],0)) -> NT$200.00 | K25: =INDEX(行銷計劃[],MATCH(INDEX(行銷差異[],ROW()-ROW(行銷差異[[#Headers],[9 月]]),1),INDEX(行銷計劃[],,1),0),MATCH(行銷差異[[#Headers],[9 月]],行銷計劃[#Headers],0))-INDEX(行銷實際數字[],MATCH(INDEX(行銷差異[],ROW()-ROW(行銷差異[[#Headers],[9 月]]),1),INDEX(行銷計劃[],,1),0),MATCH(行銷差異[[#Headers],[9 月]],行銷實際數字[#Headers],0)) -> NT$200.00 | L25: =INDEX(行銷計劃[],MATCH(INDEX(行銷差異[],ROW()-ROW(行銷差異[[#Headers],[10 月]]),1),INDEX(行銷計劃[],,1),0),MATCH(行銷差異[[#Headers],[10 月]],行銷計劃[#Headers],0))-INDEX(行銷實際數字[],MATCH(INDEX(行銷差異[],ROW()-ROW(行銷差異[[#Headers],[10 月]]),1),INDEX(行銷計劃[],,1),0),MATCH(行銷差異[[#Headers],[10 月]],行銷實際數字[#Headers],0)) -> NT$200.00 | M25: =INDEX(行銷計劃[],MATCH(INDEX(行銷差異[],ROW()-ROW(行銷差異[[#Headers],[11 月]]),1),INDEX(行銷計劃[],,1),0),MATCH(行銷差異[[#Headers],[11 月]],行銷計劃[#Headers],0))-INDEX(行銷實際數字[],MATCH(INDEX(行銷差異[],ROW()-ROW(行銷差異[[#Headers],[11 月]]),1),INDEX(行銷計劃[],,1),0),MATCH(行銷差異[[#Headers],[11 月]],行銷實際數字[#Headers],0)) -> NT$200.00 | N25: =INDEX(行銷計劃[],MATCH(INDEX(行銷差異[],ROW()-ROW(行銷差異[[#Headers],[12 月]]),1),INDEX(行銷計劃[],,1),0),MATCH(行銷差異[[#Headers],[12 月]],行銷計劃[#Headers],0))-INDEX(行銷實際數字[],MATCH(INDEX(行銷差異[],ROW()-ROW(行銷差異[[#Headers],[12 月]]),1),INDEX(行銷計劃[],,1),0),MATCH(行銷差異[[#Headers],[12 月]],行銷實際數字[#Headers],0)) -> NT$200.00 | O25: =SUM(行銷差異[[#This Row],[1 月]:[12 月]]) -> NT$820.00
B26: 行銷活動 | C26: =INDEX(行銷計劃[],MATCH(INDEX(行銷差異[],ROW()-ROW(行銷差異[[#Headers],[1 月]]),1),INDEX(行銷計劃[],,1),0),MATCH(行銷差異[[#Headers],[1 月]],行銷計劃[#Headers],0))-INDEX(行銷實際數字[],MATCH(INDEX(行銷差異[],ROW()-ROW(行銷差異[[#Headers],[1 月]]),1),INDEX(行銷計劃[],,1),0),MATCH(行銷差異[[#Headers],[1 月]],行銷實際數字[#Headers],0)) -> NT$200.00 | D26: =INDEX(行銷計劃[],MATCH(INDEX(行銷差異[],ROW()-ROW(行銷差異[[#Headers],[2 月]]),1),INDEX(行銷計劃[],,1),0),MATCH(行銷差異[[#Headers],[2 月]],行銷計劃[#Headers],0))-INDEX(行銷實際數字[],MATCH(INDEX(行銷差異[],ROW()-ROW(行銷差異[[#Headers],[2 月]]),1),INDEX(行銷計劃[],,1),0),MATCH(行銷差異[[#Headers],[2 月]],行銷實際數字[#Headers],0)) -> (NT$200.00) | E26: =INDEX(行銷計劃[],MATCH(INDEX(行銷差異[],ROW()-ROW(行銷差異[[#Headers],[3 月]]),1),INDEX(行銷計劃[],,1),0),MATCH(行銷差異[[#Headers],[3 月]],行銷計劃[#Headers],0))-INDEX(行銷實際數字[],MATCH(INDEX(行銷差異[],ROW()-ROW(行銷差異[[#Headers],[3 月]]),1),INDEX(行銷計劃[],,1),0),MATCH(行銷差異[[#Headers],[3 月]],行銷實際數字[#Headers],0)) -> (NT$200.00) | F26: =INDEX(行銷計劃[],MATCH(INDEX(行銷差異[],ROW()-ROW(行銷差異[[#Headers],[4 月]]),1),INDEX(行銷計劃[],,1),0),MATCH(行銷差異[[#Headers],[4 月]],行銷計劃[#Headers],0))-INDEX(行銷實際數字[],MATCH(INDEX(行銷差異[],ROW()-ROW(行銷差異[[#Headers],[4 月]]),1),INDEX(行銷計劃[],,1),0),MATCH(行銷差異[[#Headers],[4 月]],行銷實際數字[#Headers],0)) -> NT$300.00 | G26: =INDEX(行銷計劃[],MATCH(INDEX(行銷差異[],ROW()-ROW(行銷差異[[#Headers],[5 月]]),1),INDEX(行銷計劃[],,1),0),MATCH(行銷差異[[#Headers],[5 月]],行銷計劃[#Headers],0))-INDEX(行銷實際數字[],MATCH(INDEX(行銷差異[],ROW()-ROW(行銷差異[[#Headers],[5 月]]),1),INDEX(行銷計劃[],,1),0),MATCH(行銷差異[[#Headers],[5 月]],行銷實際數字[#Headers],0)) -> NT$500.00 | H26: =INDEX(行銷計劃[],MATCH(INDEX(行銷差異[],ROW()-ROW(行銷差異[[#Headers],[6 月]]),1),INDEX(行銷計劃[],,1),0),MATCH(行銷差異[[#Headers],[6 月]],行銷計劃[#Headers],0))-INDEX(行銷實際數字[],MATCH(INDEX(行銷差異[],ROW()-ROW(行銷差異[[#Headers],[6 月]]),1),INDEX(行銷計劃[],,1),0),MATCH(行銷差異[[#Headers],[6 月]],行銷實際數字[#Headers],0)) -> (NT$300.00) | I26: =INDEX(行銷計劃[],MATCH(INDEX(行銷差異[],ROW()-ROW(行銷差異[[#Headers],[7 月]]),1),INDEX(行銷計劃[],,1),0),MATCH(行銷差異[[#Headers],[7 月]],行銷計劃[#Headers],0))-INDEX(行銷實際數字[],MATCH(INDEX(行銷差異[],ROW()-ROW(行銷差異[[#Headers],[7 月]]),1),INDEX(行銷計劃[],,1),0),MATCH(行銷差異[[#Headers],[7 月]],行銷實際數字[#Headers],0)) -> NT$2,000.00 | J26: =INDEX(行銷計劃[],MATCH(INDEX(行銷差異[],ROW()-ROW(行銷差異[[#Headers],[8 月]]),1),INDEX(行銷計劃[],,1),0),MATCH(行銷差異[[#Headers],[8 月]],行銷計劃[#Headers],0))-INDEX(行銷實際數字[],MATCH(INDEX(行銷差異[],ROW()-ROW(行銷差異[[#Headers],[8 月]]),1),INDEX(行銷計劃[],,1),0),MATCH(行銷差異[[#Headers],[8 月]],行銷實際數字[#Headers],0)) -> NT$5,000.00 | K26: =INDEX(行銷計劃[],MATCH(INDEX(行銷差異[],ROW()-ROW(行銷差異[[#Headers],[9 月]]),1),INDEX(行銷計劃[],,1),0),MATCH(行銷差異[[#Headers],[9 月]],行銷計劃[#Headers],0))-INDEX(行銷實際數字[],MATCH(INDEX(行銷差異[],ROW()-ROW(行銷差異[[#Headers],[9 月]]),1),INDEX(行銷計劃[],,1),0),MATCH(行銷差異[[#Headers],[9 月]],行銷實際數字[#Headers],0)) -> NT$2,000.00 | L26: =INDEX(行銷計劃[],MATCH(INDEX(行銷差異[],ROW()-ROW(行銷差異[[#Headers],[10 月]]),1),INDEX(行銷計劃[],,1),0),MATCH(行銷差異[[#Headers],[10 月]],行銷計劃[#Headers],0))-INDEX(行銷實際數字[],MATCH(INDEX(行銷差異[],ROW()-ROW(行銷差異[[#Headers],[10 月]]),1),INDEX(行銷計劃[],,1),0),MATCH(行銷差異[[#Headers],[10 月]],行銷實際數字[#Headers],0)) -> NT$2,000.00 | M26: =INDEX(行銷計劃[],MATCH(INDEX(行銷差異[],ROW()-ROW(行銷差異[[#Headers],[11 月]]),1),INDEX(行銷計劃[],,1),0),MATCH(行銷差異[[#Headers],[11 月]],行銷計劃[#Headers],0))-INDEX(行銷實際數字[],MATCH(INDEX(行銷差異[],ROW()-ROW(行銷差異[[#Headers],[11 月]]),1),INDEX(行銷計劃[],,1),0),MATCH(行銷差異[[#Headers],[11 月]],行銷實際數字[#Headers],0)) -> NT$2,000.00 | N26: =INDEX(行銷計劃[],MATCH(INDEX(行銷差異[],ROW()-ROW(行銷差異[[#Headers],[12 月]]),1),INDEX(行銷計劃[],,1),0),MATCH(行銷差異[[#Headers],[12 月]],行銷計劃[#Headers],0))-INDEX(行銷實際數字[],MATCH(INDEX(行銷差異[],ROW()-ROW(行銷差異[[#Headers],[12 月]]),1),INDEX(行銷計劃[],,1),0),MATCH(行銷差異[[#Headers],[12 月]],行銷實際數字[#Headers],0)) -> NT$5,000.00 | O26: =SUM(行銷差異[[#This Row],[1 月]:[12 月]]) -> NT$18,300.00
B27: 其他費用 | C27: =INDEX(行銷計劃[],MATCH(INDEX(行銷差異[],ROW()-ROW(行銷差異[[#Headers],[1 月]]),1),INDEX(行銷計劃[],,1),0),MATCH(行銷差異[[#Headers],[1 月]],行銷計劃[#Headers],0))-INDEX(行銷實際數字[],MATCH(INDEX(行銷差異[],ROW()-ROW(行銷差異[[#Headers],[1 月]]),1),INDEX(行銷計劃[],,1),0),MATCH(行銷差異[[#Headers],[1 月]],行銷實際數字[#Headers],0)) -> NT$55.00 | D27: =INDEX(行銷計劃[],MATCH(INDEX(行銷差異[],ROW()-ROW(行銷差異[[#Headers],[2 月]]),1),INDEX(行銷計劃[],,1),0),MATCH(行銷差異[[#Headers],[2 月]],行銷計劃[#Headers],0))-INDEX(行銷實際數字[],MATCH(INDEX(行銷差異[],ROW()-ROW(行銷差異[[#Headers],[2 月]]),1),INDEX(行銷計劃[],,1),0),MATCH(行銷差異[[#Headers],[2 月]],行銷實際數字[#Headers],0)) -> NT$44.00 | E27: =INDEX(行銷計劃[],MATCH(INDEX(行銷差異[],ROW()-ROW(行銷差異[[#Headers],[3 月]]),1),INDEX(行銷計劃[],,1),0),MATCH(行銷差異[[#Headers],[3 月]],行銷計劃[#Headers],0))-INDEX(行銷實際數字[],MATCH(INDEX(行銷差異[],ROW()-ROW(行銷差異[[#Headers],[3 月]]),1),INDEX(行銷計劃[],,1),0),MATCH(行銷差異[[#Headers],[3 月]],行銷實際數字[#Headers],0)) -> NT$77.00 | F27: =INDEX(行銷計劃[],MATCH(INDEX(行銷差異[],ROW()-ROW(行銷差異[[#Headers],[4 月]]),1),INDEX(行銷計劃[],,1),0),MATCH(行銷差異[[#Headers],[4 月]],行銷計劃[#Headers],0))-INDEX(行銷實際數字[],MATCH(INDEX(行銷差異[],ROW()-ROW(行銷差異[[#Headers],[4 月]]),1),INDEX(行銷計劃[],,1),0),MATCH(行銷差異[[#Headers],[4 月]],行銷實際數字[#Headers],0)) -> (NT$23.00) | G27: =INDEX(行銷計劃[],MATCH(INDEX(行銷差異[],ROW()-ROW(行銷差異[[#Headers],[5 月]]),1),INDEX(行銷計劃[],,1),0),MATCH(行銷差異[[#Headers],[5 月]],行銷計劃[#Headers],0))-INDEX(行銷實際數字[],MATCH(INDEX(行銷差異[],ROW()-ROW(行銷差異[[#Headers],[5 月]]),1),INDEX(行銷計劃[],,1),0),MATCH(行銷差異[[#Headers],[5 月]],行銷實際數字[#Headers],0)) -> NT$13.00 | H27: =INDEX(行銷計劃[],MATCH(INDEX(行銷差異[],ROW()-ROW(行銷差異[[#Headers],[6 月]]),1),INDEX(行銷計劃[],,1),0),MATCH(行銷差異[[#Headers],[6 月]],行銷計劃[#Headers],0))-INDEX(行銷實際數字[],MATCH(INDEX(行銷差異[],ROW()-ROW(行銷差異[[#Headers],[6 月]]),1),INDEX(行銷計劃[],,1),0),MATCH(行銷差異[[#Headers],[6 月]],行銷實際數字[#Headers],0)) -> (NT$45.00) | I27: =INDEX(行銷計劃[],MATCH(INDEX(行銷差異[],ROW()-ROW(行銷差異[[#Headers],[7 月]]),1),INDEX(行銷計劃[],,1),0),MATCH(行銷差異[[#Headers],[7 月]],行銷計劃[#Headers],0))-INDEX(行銷實際數字[],MATCH(INDEX(行銷差異[],ROW()-ROW(行銷差異[[#Headers],[7 月]]),1),INDEX(行銷計劃[],,1),0),MATCH(行銷差異[[#Headers],[7 月]],行銷實際數字[#Headers],0)) -> NT$200.00 | J27: =INDEX(行銷計劃[],MATCH(INDEX(行銷差異[],ROW()-ROW(行銷差異[[#Headers],[8 月]]),1),INDEX(行銷計劃[],,1),0),MATCH(行銷差異[[#Headers],[8 月]],行銷計劃[#Headers],0))-INDEX(行銷實際數字[],MATCH(INDEX(行銷差異[],ROW()-ROW(行銷差異[[#Headers],[8 月]]),1),INDEX(行銷計劃[],,1),0),MATCH(行銷差異[[#Headers],[8 月]],行銷實際數字[#Headers],0)) -> NT$200.00 | K27: =INDEX(行銷計劃[],MATCH(INDEX(行銷差異[],ROW()-ROW(行銷差異[[#Headers],[9 月]]),1),INDEX(行銷計劃[],,1),0),MATCH(行銷差異[[#Headers],[9 月]],行銷計劃[#Headers],0))-INDEX(行銷實際數字[],MATCH(INDEX(行銷差異[],ROW()-ROW(行銷差異[[#Headers],[9 月]]),1),INDEX(行銷計劃[],,1),0),MATCH(行銷差異[[#Headers],[9 月]],行銷實際數字[#Headers],0)) -> NT$200.00 | L27: =INDEX(行銷計劃[],MATCH(INDEX(行銷差異[],ROW()-ROW(行銷差異[[#Headers],[10 月]]),1),INDEX(行銷計劃[],,1),0),MATCH(行銷差異[[#Headers],[10 月]],行銷計劃[#Headers],0))-INDEX(行銷實際數字[],MATCH(INDEX(行銷差異[],ROW()-ROW(行銷差異[[#Headers],[10 月]]),1),INDEX(行銷計劃[],,1),0),MATCH(行銷差異[[#Headers],[10 月]],行銷實際數字[#Headers],0)) -> NT$200.00 | M27: =INDEX(行銷計劃[],MATCH(INDEX(行銷差異[],ROW()-ROW(行銷差異[[#Headers],[11 月]]),1),INDEX(行銷計劃[],,1),0),MATCH(行銷差異[[#Headers],[11 月]],行銷計劃[#Headers],0))-INDEX(行銷實際數字[],MATCH(INDEX(行銷差異[],ROW()-ROW(行銷差異[[#Headers],[11 月]]),1),INDEX(行銷計劃[],,1),0),MATCH(行銷差異[[#Headers],[11 月]],行銷實際數字[#Headers],0)) -> NT$200.00 | N27: =INDEX(行銷計劃[],MATCH(INDEX(行銷差異[],ROW()-ROW(行銷差異[[#Headers],[12 月]]),1),INDEX(行銷計劃[],,1),0),MATCH(行銷差異[[#Headers],[12 月]],行銷計劃[#Headers],0))-INDEX(行銷實際數字[],MATCH(INDEX(行銷差異[],ROW()-ROW(行銷差異[[#Headers],[12 月]]),1),INDEX(行銷計劃[],,1),0),MATCH(行銷差異[[#Headers],[12 月]],行銷實際數字[#Headers],0)) -> NT$200.00 | O27: =SUM(行銷差異[[#This Row],[1 月]:[12 月]]) -> NT$1,321.00
B28: 小計 | C28: =SUBTOTAL(109,行銷差異[1 月]) -> NT$555.00 | D28: =SUBTOTAL(109,行銷差異[2 月]) -> (NT$456.00) | E28: =SUBTOTAL(109,行銷差異[3 月]) -> (NT$23.00) | F28: =SUBTOTAL(109,行銷差異[4 月]) -> (NT$123.00) | G28: =SUBTOTAL(109,行銷差異[5 月]) -> NT$113.00 | H28: =SUBTOTAL(109,行銷差異[6 月]) -> (NT$825.00) | I28: =SUBTOTAL(109,行銷差異[7 月]) -> NT$8,100.00 | J28: =SUBTOTAL(109,行銷差異[8 月]) -> NT$6,100.00 | K28: =SUBTOTAL(109,行銷差異[9 月]) -> NT$3,100.00 | L28: =SUBTOTAL(109,行銷差異[10 月]) -> NT$8,100.00 | M28: =SUBTOTAL(109,行銷差異[11 月]) -> NT$3,100.00 | N28: =SUBTOTAL(109,行銷差異[12 月]) -> NT$6,900.00 | O28: =SUBTOTAL(109,行銷差異[年度]) -> NT$34,641.00
B30: 教育訓練/差旅 | C30: 1 月 | D30: 2 月 | E30: 3 月 | F30: 4 月 | G30: 5 月 | H30: 6 月 | I30: 7 月 | J30: 8 月 | K30: 9 月 | L30: 10 月 | M30: 11 月 | N30: 12 月 | O30: 年度
B31: 教育訓練課程 | C31: =INDEX(教育訓練與差旅計劃[],MATCH(INDEX(教育訓練與差旅差異[],ROW()-ROW(教育訓練與差旅差異[[#Headers],[1 月]]),1),INDEX(教育訓練與差旅計劃[],,1),0),MATCH(教育訓練與差旅差異[[#Headers],[1 月]],教育訓練與差旅計劃[#Headers],0))-INDEX(教育訓練與差旅實際數字[],MATCH(INDEX(教育訓練與差旅差異[],ROW()-ROW(教育訓練與差旅差異[[#Headers],[1 月]]),1),INDEX(教育訓練與差旅計劃[],,1),0),MATCH(教育訓練與差旅差異[[#Headers],[1 月]],教育訓練與差旅實際數字[#Headers],0)) -> NT$400.00 | D31: =INDEX(教育訓練與差旅計劃[],MATCH(INDEX(教育訓練與差旅差異[],ROW()-ROW(教育訓練與差旅差異[[#Headers],[2 月]]),1),INDEX(教育訓練與差旅計劃[],,1),0),MATCH(教育訓練與差旅差異[[#Headers],[2 月]],教育訓練與差旅計劃[#Headers],0))-INDEX(教育訓練與差旅實際數字[],MATCH(INDEX(教育訓練與差旅差異[],ROW()-ROW(教育訓練與差旅差異[[#Headers],[2 月]]),1),INDEX(教育訓練與差旅計劃[],,1),0),MATCH(教育訓練與差旅差異[[#Headers],[2 月]],教育訓練與差旅實際數字[#Headers],0)) -> (NT$400.00) | E31: =INDEX(教育訓練與差旅計劃[],MATCH(INDEX(教育訓練與差旅差異[],ROW()-ROW(教育訓練與差旅差異[[#Headers],[3 月]]),1),INDEX(教育訓練與差旅計劃[],,1),0),MATCH(教育訓練與差旅差異[[#Headers],[3 月]],教育訓練與差旅計劃[#Headers],0))-INDEX(教育訓練與差旅實際數字[],MATCH(INDEX(教育訓練與差旅差異[],ROW()-ROW(教育訓練與差旅差異[[#Headers],[3 月]]),1),INDEX(教育訓練與差旅計劃[],,1),0),MATCH(教育訓練與差旅差異[[#Headers],[3 月]],教育訓練與差旅實際數字[#Headers],0)) -> NT$600.00 | F31: =INDEX(教育訓練與差旅計劃[],MATCH(INDEX(教育訓練與差旅差異[],ROW()-ROW(教育訓練與差旅差異[[#Headers],[4 月]]),1),INDEX(教育訓練與差旅計劃[],,1),0),MATCH(教育訓練與差旅差異[[#Headers],[4 月]],教育訓練與差旅計劃[#Headers],0))-INDEX(教育訓練與差旅實際數字[],MATCH(INDEX(教育訓練與差旅差異[],ROW()-ROW(教育訓練與差旅差異[[#Headers],[4 月]]),1),INDEX(教育訓練與差旅計劃[],,1),0),MATCH(教育訓練與差旅差異[[#Headers],[4 月]],教育訓練與差旅實際數字[#Headers],0)) -> NT$400.00 | G31: =INDEX(教育訓練與差旅計劃[],MATCH(INDEX(教育訓練與差旅差異[],ROW()-ROW(教育訓練與差旅差異[[#Headers],[5 月]]),1),INDEX(教育訓練與差旅計劃[],,1),0),MATCH(教育訓練與差旅差異[[#Headers],[5 月]],教育訓練與差旅計劃[#Headers],0))-INDEX(教育訓練與差旅實際數字[],MATCH(INDEX(教育訓練與差旅差異[],ROW()-ROW(教育訓練與差旅差異[[#Headers],[5 月]]),1),INDEX(教育訓練與差旅計劃[],,1),0),MATCH(教育訓練與差旅差異[[#Headers],[5 月]],教育訓練與差旅實際數字[#Headers],0)) -> NT$800.00 | H31: =INDEX(教育訓練與差旅計劃[],MATCH(INDEX(教育訓練與差旅差異[],ROW()-ROW(教育訓練與差旅差異[[#Headers],[6 月]]),1),INDEX(教育訓練與差旅計劃[],,1),0),MATCH(教育訓練與差旅差異[[#Headers],[6 月]],教育訓練與差旅計劃[#Headers],0))-INDEX(教育訓練與差旅實際數字[],MATCH(INDEX(教育訓練與差旅差異[],ROW()-ROW(教育訓練與差旅差異[[#Headers],[6 月]]),1),INDEX(教育訓練與差旅計劃[],,1),0),MATCH(教育訓練與差旅差異[[#Headers],[6 月]],教育訓練與差旅實際數字[#Headers],0)) -> (NT$800.00) | I31: =INDEX(教育訓練與差旅計劃[],MATCH(INDEX(教育訓練與差旅差異[],ROW()-ROW(教育訓練與差旅差異[[#Headers],[7 月]]),1),INDEX(教育訓練與差旅計劃[],,1),0),MATCH(教育訓練與差旅差異[[#Headers],[7 月]],教育訓練與差旅計劃[#Headers],0))-INDEX(教育訓練與差旅實際數字[],MATCH(INDEX(教育訓練與差旅差異[],ROW()-ROW(教育訓練與差旅差異[[#Headers],[7 月]]),1),INDEX(教育訓練與差旅計劃[],,1),0),MATCH(教育訓練與差旅差異[[#Headers],[7 月]],教育訓練與差旅實際數字[#Headers],0)) -> NT$2,000.00 | J31: =INDEX(教育訓練與差旅計劃[],MATCH(INDEX(教育訓練與差旅差異[],ROW()-ROW(教育訓練與差旅差異[[#Headers],[8 月]]),1),INDEX(教育訓練與差旅計劃[],,1),0),MATCH(教育訓練與差旅差異[[#Headers],[8 月]],教育訓練與差旅計劃[#Headers],0))-INDEX(教育訓練與差旅實際數字[],MATCH(INDEX(教育訓練與差旅差異[],ROW()-ROW(教育訓練與差旅差異[[#Headers],[8 月]]),1),INDEX(教育訓練與差旅計劃[],,1),0),MATCH(教育訓練與差旅差異[[#Headers],[8 月]],教育訓練與差旅實際數字[#Headers],0)) -> NT$2,000.00 | K31: =INDEX(教育訓練與差旅計劃[],MATCH(INDEX(教育訓練與差旅差異[],ROW()-ROW(教育訓練與差旅差異[[#Headers],[9 月]]),1),INDEX(教育訓練與差旅計劃[],,1),0),MATCH(教育訓練與差旅差異[[#Headers],[9 月]],教育訓練與差旅計劃[#Headers],0))-INDEX(教育訓練與差旅實際數字[],MATCH(INDEX(教育訓練與差旅差異[],ROW()-ROW(教育訓練與差旅差異[[#Headers],[9 月]]),1),INDEX(教育訓練與差旅計劃[],,1),0),MATCH(教育訓練與差旅差異[[#Headers],[9 月]],教育訓練與差旅實際數字[#Headers],0)) -> NT$2,000.00 | L31: =INDEX(教育訓練與差旅計劃[],MATCH(INDEX(教育訓練與差旅差異[],ROW()-ROW(教育訓練與差旅差異[[#Headers],[10 月]]),1),INDEX(教育訓練與差旅計劃[],,1),0),MATCH(教育訓練與差旅差異[[#Headers],[10 月]],教育訓練與差旅計劃[#Headers],0))-INDEX(教育訓練與差旅實際數字[],MATCH(INDEX(教育訓練與差旅差異[],ROW()-ROW(教育訓練與差旅差異[[#Headers],[10 月]]),1),INDEX(教育訓練與差旅計劃[],,1),0),MATCH(教育訓練與差旅差異[[#Headers],[10 月]],教育訓練與差旅實際數字[#Headers],0)) -> NT$2,000.00 | M31: =INDEX(教育訓練與差旅計劃[],MATCH(INDEX(教育訓練與差旅差異[],ROW()-ROW(教育訓練與差旅差異[[#Headers],[11 月]]),1),INDEX(教育訓練與差旅計劃[],,1),0),MATCH(教育訓練與差旅差異[[#Headers],[11 月]],教育訓練與差旅計劃[#Headers],0))-INDEX(教育訓練與差旅實際數字[],MATCH(INDEX(教育訓練與差旅差異[],ROW()-ROW(教育訓練與差旅差異[[#Headers],[11 月]]),1),INDEX(教育訓練與差旅計劃[],,1),0),MATCH(教育訓練與差旅差異[[#Headers],[11 月]],教育訓練與差旅實際數字[#Headers],0)) -> NT$2,000.00 | N31: =INDEX(教育訓練與差旅計劃[],MATCH(INDEX(教育訓練與差旅差異[],ROW()-ROW(教育訓練與差旅差異[[#Headers],[12 月]]),1),INDEX(教育訓練與差旅計劃[],,1),0),MATCH(教育訓練與差旅差異[[#Headers],[12 月]],教育訓練與差旅計劃[#Headers],0))-INDEX(教育訓練與差旅實際數字[],MATCH(INDEX(教育訓練與差旅差異[],ROW()-ROW(教育訓練與差旅差異[[#Headers],[12 月]]),1),INDEX(教育訓練與差旅計劃[],,1),0),MATCH(教育訓練與差旅差異[[#Headers],[12 月]],教育訓練與差旅實際數字[#Headers],0)) -> NT$2,000.00 | O31: =SUM(教育訓練與差旅差異[[#This Row],[1 月]:[12 月]]) -> NT$13,000.00
B32: 教育訓練相關差旅費用 | C32: =INDEX(教育訓練與差旅計劃[],MATCH(INDEX(教育訓練與差旅差異[],ROW()-ROW(教育訓練與差旅差異[[#Headers],[1 月]]),1),INDEX(教育訓練與差旅計劃[],,1),0),MATCH(教育訓練與差旅差異[[#Headers],[1 月]],教育訓練與差旅計劃[#Headers],0))-INDEX(教育訓練與差旅實際數字[],MATCH(INDEX(教育訓練與差旅差異[],ROW()-ROW(教育訓練與差旅差異[[#Headers],[1 月]]),1),INDEX(教育訓練與差旅計劃[],,1),0),MATCH(教育訓練與差旅差異[[#Headers],[1 月]],教育訓練與差旅實際數字[#Headers],0)) -> NT$800.00 | D32: =INDEX(教育訓練與差旅計劃[],MATCH(INDEX(教育訓練與差旅差異[],ROW()-ROW(教育訓練與差旅差異[[#Headers],[2 月]]),1),INDEX(教育訓練與差旅計劃[],,1),0),MATCH(教育訓練與差旅差異[[#Headers],[2 月]],教育訓練與差旅計劃[#Headers],0))-INDEX(教育訓練與差旅實際數字[],MATCH(INDEX(教育訓練與差旅差異[],ROW()-ROW(教育訓練與差旅差異[[#Headers],[2 月]]),1),INDEX(教育訓練與差旅計劃[],,1),0),MATCH(教育訓練與差旅差異[[#Headers],[2 月]],教育訓練與差旅實際數字[#Headers],0)) -> (NT$200.00) | E32: =INDEX(教育訓練與差旅計劃[],MATCH(INDEX(教育訓練與差旅差異[],ROW()-ROW(教育訓練與差旅差異[[#Headers],[3 月]]),1),INDEX(教育訓練與差旅計劃[],,1),0),MATCH(教育訓練與差旅差異[[#Headers],[3 月]],教育訓練與差旅計劃[#Headers],0))-INDEX(教育訓練與差旅實際數字[],MATCH(INDEX(教育訓練與差旅差異[],ROW()-ROW(教育訓練與差旅差異[[#Headers],[3 月]]),1),INDEX(教育訓練與差旅計劃[],,1),0),MATCH(教育訓練與差旅差異[[#Headers],[3 月]],教育訓練與差旅實際數字[#Headers],0)) -> NT$600.00 | F32: =INDEX(教育訓練與差旅計劃[],MATCH(INDEX(教育訓練與差旅差異[],ROW()-ROW(教育訓練與差旅差異[[#Headers],[4 月]]),1),INDEX(教育訓練與差旅計劃[],,1),0),MATCH(教育訓練與差旅差異[[#Headers],[4 月]],教育訓練與差旅計劃[#Headers],0))-INDEX(教育訓練與差旅實際數字[],MATCH(INDEX(教育訓練與差旅差異[],ROW()-ROW(教育訓練與差旅差異[[#Headers],[4 月]]),1),INDEX(教育訓練與差旅計劃[],,1),0),MATCH(教育訓練與差旅差異[[#Headers],[4 月]],教育訓練與差旅實際數字[#Headers],0)) -> NT$800.00 | G32: =INDEX(教育訓練與差旅計劃[],MATCH(INDEX(教育訓練與差旅差異[],ROW()-ROW(教育訓練與差旅差異[[#Headers],[5 月]]),1),INDEX(教育訓練與差旅計劃[],,1),0),MATCH(教育訓練與差旅差異[[#Headers],[5 月]],教育訓練與差旅計劃[#Headers],0))-INDEX(教育訓練與差旅實際數字[],MATCH(INDEX(教育訓練與差旅差異[],ROW()-ROW(教育訓練與差旅差異[[#Headers],[5 月]]),1),INDEX(教育訓練與差旅計劃[],,1),0),MATCH(教育訓練與差旅差異[[#Headers],[5 月]],教育訓練與差旅實際數字[#Headers],0)) -> NT$1,200.00 | H32: =INDEX(教育訓練與差旅計劃[],MATCH(INDEX(教育訓練與差旅差異[],ROW()-ROW(教育訓練與差旅差異[[#Headers],[6 月]]),1),INDEX(教育訓練與差旅計劃[],,1),0),MATCH(教育訓練與差旅差異[[#Headers],[6 月]],教育訓練與差旅計劃[#Headers],0))-INDEX(教育訓練與差旅實際數字[],MATCH(INDEX(教育訓練與差旅差異[],ROW()-ROW(教育訓練與差旅差異[[#Headers],[6 月]]),1),INDEX(教育訓練與差旅計劃[],,1),0),MATCH(教育訓練與差旅差異[[#Headers],[6 月]],教育訓練與差旅實際數字[#Headers],0)) -> (NT$1,500.00) | I32: =INDEX(教育訓練與差旅計劃[],MATCH(INDEX(教育訓練與差旅差異[],ROW()-ROW(教育訓練與差旅差異[[#Headers],[7 月]]),1),INDEX(教育訓練與差旅計劃[],,1),0),MATCH(教育訓練與差旅差異[[#Headers],[7 月]],教育訓練與差旅計劃[#Headers],0))-INDEX(教育訓練與差旅實際數字[],MATCH(INDEX(教育訓練與差旅差異[],ROW()-ROW(教育訓練與差旅差異[[#Headers],[7 月]]),1),INDEX(教育訓練與差旅計劃[],,1),0),MATCH(教育訓練與差旅差異[[#Headers],[7 月]],教育訓練與差旅實際數字[#Headers],0)) -> NT$2,000.00 | J32: =INDEX(教育訓練與差旅計劃[],MATCH(INDEX(教育訓練與差旅差異[],ROW()-ROW(教育訓練與差旅差異[[#Headers],[8 月]]),1),INDEX(教育訓練與差旅計劃[],,1),0),MATCH(教育訓練與差旅差異[[#Headers],[8 月]],教育訓練與差旅計劃[#Headers],0))-INDEX(教育訓練與差旅實際數字[],MATCH(INDEX(教育訓練與差旅差異[],ROW()-ROW(教育訓練與差旅差異[[#Headers],[8 月]]),1),INDEX(教育訓練與差旅計劃[],,1),0),MATCH(教育訓練與差旅差異[[#Headers],[8 月]],教育訓練與差旅實際數字[#Headers],0)) -> NT$2,000.00 | K32: =INDEX(教育訓練與差旅計劃[],MATCH(INDEX(教育訓練與差旅差異[],ROW()-ROW(教育訓練與差旅差異[[#Headers],[9 月]]),1),INDEX(教育訓練與差旅計劃[],,1),0),MATCH(教育訓練與差旅差異[[#Headers],[9 月]],教育訓練與差旅計劃[#Headers],0))-INDEX(教育訓練與差旅實際數字[],MATCH(INDEX(教育訓練與差旅差異[],ROW()-ROW(教育訓練與差旅差異[[#Headers],[9 月]]),1),INDEX(教育訓練與差旅計劃[],,1),0),MATCH(教育訓練與差旅差異[[#Headers],[9 月]],教育訓練與差旅實際數字[#Headers],0)) -> NT$2,000.00 | L32: =INDEX(教育訓練與差旅計劃[],MATCH(INDEX(教育訓練與差旅差異[],ROW()-ROW(教育訓練與差旅差異[[#Headers],[10 月]]),1),INDEX(教育訓練與差旅計劃[],,1),0),MATCH(教育訓練與差旅差異[[#Headers],[10 月]],教育訓練與差旅計劃[#Headers],0))-INDEX(教育訓練與差旅實際數字[],MATCH(INDEX(教育訓練與差旅差異[],ROW()-ROW(教育訓練與差旅差異[[#Headers],[10 月]]),1),INDEX(教育訓練與差旅計劃[],,1),0),MATCH(教育訓練與差旅差異[[#Headers],[10 月]],教育訓練與差旅實際數字[#Headers],0)) -> NT$2,000.00 | M32: =INDEX(教育訓練與差旅計劃[],MATCH(INDEX(教育訓練與差旅差異[],ROW()-ROW(教育訓練與差旅差異[[#Headers],[11 月]]),1),INDEX(教育訓練與差旅計劃[],,1),0),MATCH(教育訓練與差旅差異[[#Headers],[11 月]],教育訓練與差旅計劃[#Headers],0))-INDEX(教育訓練與差旅實際數字[],MATCH(INDEX(教育訓練與差旅差異[],ROW()-ROW(教育訓練與差旅差異[[#Headers],[11 月]]),1),INDEX(教育訓練與差旅計劃[],,1),0),MATCH(教育訓練與差旅差異[[#Headers],[11 月]],教育訓練與差旅實際數字[#Headers],0)) -> NT$2,000.00 | N32: =INDEX(教育訓練與差旅計劃[],MATCH(INDEX(教育訓練與差旅差異[],ROW()-ROW(教育訓練與差旅差異[[#Headers],[12 月]]),1),INDEX(教育訓練與差旅計劃[],,1),0),MATCH(教育訓練與差旅差異[[#Headers],[12 月]],教育訓練與差旅計劃[#Headers],0))-INDEX(教育訓練與差旅實際數字[],MATCH(INDEX(教育訓練與差旅差異[],ROW()-ROW(教育訓練與差旅差異[[#Headers],[12 月]]),1),INDEX(教育訓練與差旅計劃[],,1),0),MATCH(教育訓練與差旅差異[[#Headers],[12 月]],教育訓練與差旅實際數字[#Headers],0)) -> NT$2,000.00 | O32: =SUM(教育訓練與差旅差異[[#This Row],[1 月]:[12 月]]) -> NT$13,700.00
B33: 小計 | C33: =SUBTOTAL(109,教育訓練與差旅差異[1 月]) -> NT$1,200.00 | D33: =SUBTOTAL(109,教育訓練與差旅差異[2 月]) -> (NT$600.00) | E33: =SUBTOTAL(109,教育訓練與差旅差異[3 月]) -> NT$1,200.00 | F33: =SUBTOTAL(109,教育訓練與差旅差異[4 月]) -> NT$1,200.00 | G33: =SUBTOTAL(109,教育訓練與差旅差異[5 月]) -> NT$2,000.00 | H33: =SUBTOTAL(109,教育訓練與差旅差異[6 月]) -> (NT$2,300.00) | I33: =SUBTOTAL(109,教育訓練與差旅差異[7 月]) -> NT$4,000.00 | J33: =SUBTOTAL(109,教育訓練與差旅差異[8 月]) -> NT$4,000.00 | K33: =SUBTOTAL(109,教育訓練與差旅差異[9 月]) -> NT$4,000.00 | L33: =SUBTOTAL(109,教育訓練與差旅差異[10 月]) -> NT$4,000.00 | M33: =SUBTOTAL(109,教育訓練與差旅差異[11 月]) -> NT$4,000.00 | N33: =SUBTOTAL(109,教育訓練與差旅差異[12 月]) -> NT$4,000.00 | O33: =SUBTOTAL(109,教育訓練與差旅差異[年度]) -> NT$26,700.00
B35: 總計 | C35: 1 月 | D35: 2 月 | E35: 3 月 | F35: 4 月 | G35: 5 月 | H35: 6 月 | I35: 7 月 | J35: 8 月 | K35: 9 月 | L35: 10 月 | M35: 11 月 | N35: 12 月 | O35: 年度
B36: 每月實際費用 | C36: =教育訓練與差旅差異[[#Totals],[1 月]]+行銷差異[[#Totals],[1 月]]+辦公室差異[[#Totals],[1 月]]+員工差異[[#Totals],[1 月]] -> NT$1,738.00 | D36: =教育訓練與差旅差異[[#Totals],[2 月]]+行銷差異[[#Totals],[2 月]]+辦公室差異[[#Totals],[2 月]]+員工差異[[#Totals],[2 月]] -> (NT$984.00) | E36: =教育訓練與差旅差異[[#Totals],[3 月]]+行銷差異[[#Totals],[3 月]]+辦公室差異[[#Totals],[3 月]]+員工差異[[#Totals],[3 月]] -> NT$1,255.00 | F36: =教育訓練與差旅差異[[#Totals],[4 月]]+行銷差異[[#Totals],[4 月]]+辦公室差異[[#Totals],[4 月]]+員工差異[[#Totals],[4 月]] -> NT$301.00 | G36: =教育訓練與差旅差異[[#Totals],[5 月]]+行銷差異[[#Totals],[5 月]]+辦公室差異[[#Totals],[5 月]]+員工差異[[#Totals],[5 月]] -> NT$1,440.00 | H36: =教育訓練與差旅差異[[#Totals],[6 月]]+行銷差異[[#Totals],[6 月]]+辦公室差異[[#Totals],[6 月]]+員工差異[[#Totals],[6 月]] -> (NT$3,744.00) | I36: =教育訓練與差旅差異[[#Totals],[7 月]]+行銷差異[[#Totals],[7 月]]+辦公室差異[[#Totals],[7 月]]+員工差異[[#Totals],[7 月]] -> NT$134,695.00 | J36: =教育訓練與差旅差異[[#Totals],[8 月]]+行銷差異[[#Totals],[8 月]]+辦公室差異[[#Totals],[8 月]]+員工差異[[#Totals],[8 月]] -> NT$138,918.00 | K36: =教育訓練與差旅差異[[#Totals],[9 月]]+行銷差異[[#Totals],[9 月]]+辦公室差異[[#Totals],[9 月]]+員工差異[[#Totals],[9 月]] -> NT$135,918.00 | L36: =教育訓練與差旅差異[[#Totals],[10 月]]+行銷差異[[#Totals],[10 月]]+辦公室差異[[#Totals],[10 月]]+員工差異[[#Totals],[10 月]] -> NT$140,918.00 | M36: =教育訓練與差旅差異[[#Totals],[11 月]]+行銷差異[[#Totals],[11 月]]+辦公室差異[[#Totals],[11 月]]+員工差異[[#Totals],[11 月]] -> NT$136,218.00 | N36: =教育訓練與差旅差異[[#Totals],[12 月]]+行銷差異[[#Totals],[12 月]]+辦公室差異[[#Totals],[12 月]]+員工差異[[#Totals],[12 月]] -> NT$140,018.00 | O36: =教育訓練與差旅差異[[#Totals],[年度]]+行銷差異[[#Totals],[年度]]+辦公室差異[[#Totals],[年度]]+員工差異[[#Totals],[年度]] -> NT$826,691.00
B37: 總計實際費用 | C37: =SUM($C$36:C36) -> NT$1,738.00 | D37: =SUM($C$36:D36) -> NT$754.00 | E37: =SUM($C$36:E36) -> NT$2,009.00 | F37: =SUM($C$36:F36) -> NT$2,310.00 | G37: =SUM($C$36:G36) -> NT$3,750.00 | H37: =SUM($C$36:H36) -> NT$6.00 | I37: =SUM($C$36:I36) -> NT$134,701.00 | J37: =SUM($C$36:J36) -> NT$273,619.00 | K37: =SUM($C$36:K36) -> NT$409,537.00 | L37: =SUM($C$36:L36) -> NT$550,455.00 | M37: =SUM($C$36:M36) -> NT$686,673.00 | N37: =SUM($C$36:N36) -> NT$826,691.00

Sheet 費用分析
B2: =計劃費用!B2:D3 -> 公司名稱
E3: =工作表_標題 -> 預估費用明細
B5: 支出類別 | C5: 計劃費用 | D5: 實際費用 | E5: 費用差異 | F5: 差異百分比
B6: 員工成本 | C6: =員工計劃[[#Totals],[年度]] -> NT$1,355,090.00 | D6: =員工實際數字[[#Totals],[年度]] -> NT$659,130.00 | E6: =C6-D6 -> NT$695,960.00 | F6: =E6/C6 -> 51%
B7: =計劃費用!B10 -> 辦公室成本 | C7: =辦公室計劃[[#Totals],[年度]] -> NT$138,740.00 | D7: =辦公室實際數字[[#Totals],[年度]] -> NT$69,350.00 | E7: =C7-D7 -> NT$69,390.00 | F7: =E7/C7 -> 50%
B8: =計劃費用!B21 -> 行銷成本 | C8: =行銷計劃[[#Totals],[年度]] -> NT$67,800.00 | D8: =行銷實際數字[[#Totals],[年度]] -> NT$33,159.00 | E8: =C8-D8 -> NT$34,641.00 | F8: =E8/C8 -> 51%
B9: =計劃費用!B30 -> 教育訓練/差旅 | C9: =教育訓練與差旅計劃[[#Totals],[年度]] -> NT$48,000.00 | D9: =教育訓練與差旅實際數字[[#Totals],[年度]] -> NT$21,300.00 | E9: =C9-D9 -> NT$26,700.00 | F9: =E9/C9 -> 56%
B10: =計劃費用!B35 -> 總計 | C10: =計劃費用!O36 -> NT$1,609,630.00 | D10: =實際費用!O36 -> NT$782,939.00 | E10: =C10-D10 -> NT$826,691.00 | F10: =E10/C10 -> 51%
